Workbook

Sheet AVISO LEGAL
G2: Fecha de actualización: | I2: 2017-07-09
I23: www.ree.es

Sheet Potencia nacional
L1: 2
J5: Sistema eléctrico
J6: Periodo
C8: =OFFSET(Potencia!C64,0,($L$1-1)*10) -> 2016 | D8: =OFFSET(Potencia!D64,0,($L$1-1)*10) -> 2017 | E8: =OFFSET(Potencia!E64,0,($L$1-1)*10) -> 2018 | F8: =OFFSET(Potencia!F64,0,($L$1-1)*10) -> 2019 | G8: =OFFSET(Potencia!G64,0,($L$1-1)*10) -> 2020 | H8: =OFFSET(Potencia!H64,0,($L$1-1)*10) -> 2021 | I8: =OFFSET(Potencia!I64,0,($L$1-1)*10) -> 2022 | J8: =OFFSET(Potencia!J64,0,($L$1-1)*10) -> 2023 | K8: =OFFSET(Potencia!K64,0,($L$1-1)*10) -> 2024 | L8: =OFFSET(Potencia!L64,0,($L$1-1)*10) -> 2025
B10: Hidráulica convencional y mixta | C10: =OFFSET(Potencia!C65,0,($L$1-1)*10) -> 17024.55678 | D10: =OFFSET(Potencia!D65,0,($L$1-1)*10) -> 17000.75978 | E10: =OFFSET(Potencia!E65,0,($L$1-1)*10) -> - | F10: =OFFSET(Potencia!F65,0,($L$1-1)*10) -> - | G10: =OFFSET(Potencia!G65,0,($L$1-1)*10) -> - | H10: =OFFSET(Potencia!H65,0,($L$1-1)*10) -> - | I10: =OFFSET(Potencia!I65,0,($L$1-1)*10) -> - | J10: =OFFSET(Potencia!J65,0,($L$1-1)*10) -> - | K10: =OFFSET(Potencia!K65,0,($L$1-1)*10) -> - | L10: =OFFSET(Potencia!L65,0,($L$1-1)*10) -> -
B11: Bombeo puro | C11: =OFFSET(Potencia!C66,0,($L$1-1)*10) -> 3328.89 | D11: =OFFSET(Potencia!D66,0,($L$1-1)*10) -> 3328.89 | E11: =OFFSET(Potencia!E66,0,($L$1-1)*10) -> - | F11: =OFFSET(Potencia!F66,0,($L$1-1)*10) -> - | G11: =OFFSET(Potencia!G66,0,($L$1-1)*10) -> - | H11: =OFFSET(Potencia!H66,0,($L$1-1)*10) -> - | I11: =OFFSET(Potencia!I66,0,($L$1-1)*10) -> - | J11: =OFFSET(Potencia!J66,0,($L$1-1)*10) -> - | K11: =OFFSET(Potencia!K66,0,($L$1-1)*10) -> - | L11: =OFFSET(Potencia!L66,0,($L$1-1)*10) -> -
B12: Hidráulica | C12: =OFFSET(Potencia!C67,0,($L$1-1)*10) -> 20353.44678 | D12: =OFFSET(Potencia!D67,0,($L$1-1)*10) -> 20329.64978 | E12: =OFFSET(Potencia!E67,0,($L$1-1)*10) -> - | F12: =OFFSET(Potencia!F67,0,($L$1-1)*10) -> - | G12: =OFFSET(Potencia!G67,0,($L$1-1)*10) -> - | H12: =OFFSET(Potencia!H67,0,($L$1-1)*10) -> - | I12: =OFFSET(Potencia!I67,0,($L$1-1)*10) -> - | J12: =OFFSET(Potencia!J67,0,($L$1-1)*10) -> - | K12: =OFFSET(Potencia!K67,0,($L$1-1)*10) -> - | L12: =OFFSET(Potencia!L67,0,($L$1-1)*10) -> -
B13: Nuclear | C13: =OFFSET(Potencia!C68,0,($L$1-1)*10) -> 7572.58 | D13: =OFFSET(Potencia!D68,0,($L$1-1)*10) -> 7572.58 | E13: =OFFSET(Potencia!E68,0,($L$1-1)*10) -> - | F13: =OFFSET(Potencia!F68,0,($L$1-1)*10) -> - | G13: =OFFSET(Potencia!G68,0,($L$1-1)*10) -> - | H13: =OFFSET(Potencia!H68,0,($L$1-1)*10) -> - | I13: =OFFSET(Potencia!I68,0,($L$1-1)*10) -> - | J13: =OFFSET(Potencia!J68,0,($L$1-1)*10) -> - | K13: =OFFSET(Potencia!K68,0,($L$1-1)*10) -> - | L13: =OFFSET(Potencia!L68,0,($L$1-1)*10) -> -
B14: Carbón | C14: =OFFSET(Potencia!C69,0,($L$1-1)*10) -> 10004.27 | D14: =OFFSET(Potencia!D69,0,($L$1-1)*10) -> 10004.27 | E14: =OFFSET(Potencia!E69,0,($L$1-1)*10) -> - | F14: =OFFSET(Potencia!F69,0,($L$1-1)*10) -> - | G14: =OFFSET(Potencia!G69,0,($L$1-1)*10) -> - | H14: =OFFSET(Potencia!H69,0,($L$1-1)*10) -> - | I14: =OFFSET(Potencia!I69,0,($L$1-1)*10) -> - | J14: =OFFSET(Potencia!J69,0,($L$1-1)*10) -> - | K14: =OFFSET(Potencia!K69,0,($L$1-1)*10) -> - | L14: =OFFSET(Potencia!L69,0,($L$1-1)*10) -> -
B15: Fuel + Gas | C15: =OFFSET(Potencia!C70,0,($L$1-1)*10) -> 2490.06 | D15: =OFFSET(Potencia!D70,0,($L$1-1)*10) -> 2502.78 | E15: =OFFSET(Potencia!E70,0,($L$1-1)*10) -> - | F15: =OFFSET(Potencia!F70,0,($L$1-1)*10) -> - | G15: =OFFSET(Potencia!G70,0,($L$1-1)*10) -> - | H15: =OFFSET(Potencia!H70,0,($L$1-1)*10) -> - | I15: =OFFSET(Potencia!I70,0,($L$1-1)*10) -> - | J15: =OFFSET(Potencia!J70,0,($L$1-1)*10) -> - | K15: =OFFSET(Potencia!K70,0,($L$1-1)*10) -> - | L15: =OFFSET(Potencia!L70,0,($L$1-1)*10) -> -
B16: Ciclo combinado | C16: =OFFSET(Potencia!C71,0,($L$1-1)*10) -> 26669.86 | D16: =OFFSET(Potencia!D71,0,($L$1-1)*10) -> 26669.86 | E16: =OFFSET(Potencia!E71,0,($L$1-1)*10) -> - | F16: =OFFSET(Potencia!F71,0,($L$1-1)*10) -> - | G16: =OFFSET(Potencia!G71,0,($L$1-1)*10) -> - | H16: =OFFSET(Potencia!H71,0,($L$1-1)*10) -> - | I16: =OFFSET(Potencia!I71,0,($L$1-1)*10) -> - | J16: =OFFSET(Potencia!J71,0,($L$1-1)*10) -> - | K16: =OFFSET(Potencia!K71,0,($L$1-1)*10) -> - | L16: =OFFSET(Potencia!L71,0,($L$1-1)*10) -> -
B17: Hidroeólica | C17: =OFFSET(Potencia!C72,0,($L$1-1)*10) -> 11.39 | D17: =OFFSET(Potencia!D72,0,($L$1-1)*10) -> 11.39 | E17: =OFFSET(Potencia!E72,0,($L$1-1)*10) -> - | F17: =OFFSET(Potencia!F72,0,($L$1-1)*10) -> - | G17: =OFFSET(Potencia!G72,0,($L$1-1)*10) -> - | H17: =OFFSET(Potencia!H72,0,($L$1-1)*10) -> - | I17: =OFFSET(Potencia!I72,0,($L$1-1)*10) -> - | J17: =OFFSET(Potencia!J72,0,($L$1-1)*10) -> - | K17: =OFFSET(Potencia!K72,0,($L$1-1)*10) -> - | L17: =OFFSET(Potencia!L72,0,($L$1-1)*10) -> -
B18: Resto hidráulica (1) | C18: =OFFSET(Potencia!C73,0,($L$1-1)*10) -> - | D18: =OFFSET(Potencia!D73,0,($L$1-1)*10) -> - | E18: =OFFSET(Potencia!E73,0,($L$1-1)*10) -> - | F18: =OFFSET(Potencia!F73,0,($L$1-1)*10) -> - | G18: =OFFSET(Potencia!G73,0,($L$1-1)*10) -> - | H18: =OFFSET(Potencia!H73,0,($L$1-1)*10) -> - | I18: =OFFSET(Potencia!I73,0,($L$1-1)*10) -> - | J18: =OFFSET(Potencia!J73,0,($L$1-1)*10) -> - | K18: =OFFSET(Potencia!K73,0,($L$1-1)*10) -> - | L18: =OFFSET(Potencia!L73,0,($L$1-1)*10) -> -
B19: Eólica | C19: =OFFSET(Potencia!C74,0,($L$1-1)*10) -> 23056.51085 | D19: =OFFSET(Potencia!D74,0,($L$1-1)*10) -> 22980.52085 | E19: =OFFSET(Potencia!E74,0,($L$1-1)*10) -> - | F19: =OFFSET(Potencia!F74,0,($L$1-1)*10) -> - | G19: =OFFSET(Potencia!G74,0,($L$1-1)*10) -> - | H19: =OFFSET(Potencia!H74,0,($L$1-1)*10) -> - | I19: =OFFSET(Potencia!I74,0,($L$1-1)*10) -> - | J19: =OFFSET(Potencia!J74,0,($L$1-1)*10) -> - | K19: =OFFSET(Potencia!K74,0,($L$1-1)*10) -> - | L19: =OFFSET(Potencia!L74,0,($L$1-1)*10) -> -
B20: Solar fotovoltaica | C20: =OFFSET(Potencia!C75,0,($L$1-1)*10) -> 4673.89004 | D20: =OFFSET(Potencia!D75,0,($L$1-1)*10) -> 4674.38564 | E20: =OFFSET(Potencia!E75,0,($L$1-1)*10) -> - | F20: =OFFSET(Potencia!F75,0,($L$1-1)*10) -> - | G20: =OFFSET(Potencia!G75,0,($L$1-1)*10) -> - | H20: =OFFSET(Potencia!H75,0,($L$1-1)*10) -> - | I20: =OFFSET(Potencia!I75,0,($L$1-1)*10) -> - | J20: =OFFSET(Potencia!J75,0,($L$1-1)*10) -> - | K20: =OFFSET(Potencia!K75,0,($L$1-1)*10) -> - | L20: =OFFSET(Potencia!L75,0,($L$1-1)*10) -> -
B21: Solar térmica | C21: =OFFSET(Potencia!C76,0,($L$1-1)*10) -> 2299.4275 | D21: =OFFSET(Potencia!D76,0,($L$1-1)*10) -> 2299.4275 | E21: =OFFSET(Potencia!E76,0,($L$1-1)*10) -> - | F21: =OFFSET(Potencia!F76,0,($L$1-1)*10) -> - | G21: =OFFSET(Potencia!G76,0,($L$1-1)*10) -> - | H21: =OFFSET(Potencia!H76,0,($L$1-1)*10) -> - | I21: =OFFSET(Potencia!I76,0,($L$1-1)*10) -> - | J21: =OFFSET(Potencia!J76,0,($L$1-1)*10) -> - | K21: =OFFSET(Potencia!K76,0,($L$1-1)*10) -> - | L21: =OFFSET(Potencia!L76,0,($L$1-1)*10) -> -
B22: Térmica renovable/Otras renovables (2) | C22: =OFFSET(Potencia!C77,0,($L$1-1)*10) -> 748.61541 | D22: =OFFSET(Potencia!D77,0,($L$1-1)*10) -> 747.95841 | E22: =OFFSET(Potencia!E77,0,($L$1-1)*10) -> - | F22: =OFFSET(Potencia!F77,0,($L$1-1)*10) -> - | G22: =OFFSET(Potencia!G77,0,($L$1-1)*10) -> - | H22: =OFFSET(Potencia!H77,0,($L$1-1)*10) -> - | I22: =OFFSET(Potencia!I77,0,($L$1-1)*10) -> - | J22: =OFFSET(Potencia!J77,0,($L$1-1)*10) -> - | K22: =OFFSET(Potencia!K77,0,($L$1-1)*10) -> - | L22: =OFFSET(Potencia!L77,0,($L$1-1)*10) -> -
B23: Térmica no renovable/Cogeneración y resto/Cogeneración (3) | C23: =OFFSET(Potencia!C78,0,($L$1-1)*10) -> 6644.5462 | D23: =OFFSET(Potencia!D78,0,($L$1-1)*10) -> 6547.8392 | E23: =OFFSET(Potencia!E78,0,($L$1-1)*10) -> - | F23: =OFFSET(Potencia!F78,0,($L$1-1)*10) -> - | G23: =OFFSET(Potencia!G78,0,($L$1-1)*10) -> - | H23: =OFFSET(Potencia!H78,0,($L$1-1)*10) -> - | I23: =OFFSET(Potencia!I78,0,($L$1-1)*10) -> - | J23: =OFFSET(Potencia!J78,0,($L$1-1)*10) -> - | K23: =OFFSET(Potencia!K78,0,($L$1-1)*10) -> - | L23: =OFFSET(Potencia!L78,0,($L$1-1)*10) -> -
B24: Residuos (4) | C24: =OFFSET(Potencia!C79,0,($L$1-1)*10) -> 754.374 | D24: =OFFSET(Potencia!D79,0,($L$1-1)*10) -> 746.964 | E24: =OFFSET(Potencia!E79,0,($L$1-1)*10) -> - | F24: =OFFSET(Potencia!F79,0,($L$1-1)*10) -> - | G24: =OFFSET(Potencia!G79,0,($L$1-1)*10) -> - | H24: =OFFSET(Potencia!H79,0,($L$1-1)*10) -> - | I24: =OFFSET(Potencia!I79,0,($L$1-1)*10) -> - | J24: =OFFSET(Potencia!J79,0,($L$1-1)*10) -> - | K24: =OFFSET(Potencia!K79,0,($L$1-1)*10) -> - | L24: =OFFSET(Potencia!L79,0,($L$1-1)*10) -> -
B25: Total | C25: =OFFSET(Potencia!C80,0,($L$1-1)*10) -> 105278.9708 | D25: =OFFSET(Potencia!D80,0,($L$1-1)*10) -> 105087.6254 | E25: =OFFSET(Potencia!E80,0,($L$1-1)*10) -> - | F25: =OFFSET(Potencia!F80,0,($L$1-1)*10) -> - | G25: =OFFSET(Potencia!G80,0,($L$1-1)*10) -> - | H25: =OFFSET(Potencia!H80,0,($L$1-1)*10) -> - | I25: =OFFSET(Potencia!I80,0,($L$1-1)*10) -> - | J25: =OFFSET(Potencia!J80,0,($L$1-1)*10) -> - | K25: =OFFSET(Potencia!K80,0,($L$1-1)*10) -> - | L25: =OFFSET(Potencia!L80,0,($L$1-1)*10) -> -
B26: (1) Incluye todas aquellas unidades menores de 50 MW que no pertenecen a ninguna unidad de gestión hidráulica (UGH).
B27: (2) Otras renovables incluyen biogás, biomasa, hidráulica marina y geotérmica. Los valores de potencia incluyen residuos hasta el 31/12/2014.
B28: (3) Los valores de potencia incluyen residuos hasta el 31/12/2014.
B29: (4) Potencia incluída en térmica renovable y térmica no renovable/cogeneración y resto/cogeneración hasta el 31/12/2014.
B30: Fuente Comisión Nacional de los Mercados y la Competencia (CNMC) en: resto hidráulica, eólica, solar fotovoltaica, solar térmica, térmica renovable/otras renovables, térmica no renovable/cogeneración y resto/cogeneración y residuos.
B31: =IF(L1=2,IF(MONTH(FACT)=1,"Datos a 31 de diciembre.",(CONCATENATE("Datos a 31 de diciembre. Para el año ",YEAR(FACT), " datos a ",TEXT(FACT-30,"mmmm")," de ",YEAR(FACT),"."))),"Datos a 31 de diciembre.") -> Datos a 31 de diciembre. Para el año 2017 datos a junio de 2017.

Sheet Potencia peninsular
L1: 3
J5: Sistema eléctrico
J6: Periodo
C8: =OFFSET(Potencia!C2,0,($L$1-1)*10) -> 2010 | D8: =OFFSET(Potencia!D2,0,($L$1-1)*10) -> 2011 | E8: =OFFSET(Potencia!E2,0,($L$1-1)*10) -> 2012 | F8: =OFFSET(Potencia!F2,0,($L$1-1)*10) -> 2013 | G8: =OFFSET(Potencia!G2,0,($L$1-1)*10) -> 2014 | H8: =OFFSET(Potencia!H2,0,($L$1-1)*10) -> 2015 | I8: =OFFSET(Potencia!I2,0,($L$1-1)*10) -> 2016 | J8: =OFFSET(Potencia!J2,0,($L$1-1)*10) -> 2017 | K8: =OFFSET(Potencia!K2,0,($L$1-1)*10) -> 2018 | L8: =OFFSET(Potencia!L2,0,($L$1-1)*10) -> 2019
B10: Hidráulica convencional y mixta | C10: =OFFSET(Potencia!C3,0,($L$1-1)*10) -> 14655.31 | D10: =OFFSET(Potencia!D3,0,($L$1-1)*10) -> 14667.21 | E10: =OFFSET(Potencia!E3,0,($L$1-1)*10) -> 14886.65 | F10: =OFFSET(Potencia!F3,0,($L$1-1)*10) -> 14889.69 | G10: =OFFSET(Potencia!G3,0,($L$1-1)*10) -> 14895.92 | H10: =OFFSET(Potencia!H3,0,($L$1-1)*10) -> 17017.63878 | I10: =OFFSET(Potencia!I3,0,($L$1-1)*10) -> 17023.29378 | J10: =OFFSET(Potencia!J3,0,($L$1-1)*10) -> 16999.49678 | K10: =OFFSET(Potencia!K3,0,($L$1-1)*10) -> - | L10: =OFFSET(Potencia!L3,0,($L$1-1)*10) -> -
B11: Bombeo puro | C11: =OFFSET(Potencia!C4,0,($L$1-1)*10) -> 2450.94 | D11: =OFFSET(Potencia!D4,0,($L$1-1)*10) -> 2450.94 | E11: =OFFSET(Potencia!E4,0,($L$1-1)*10) -> 2450.94 | F11: =OFFSET(Potencia!F4,0,($L$1-1)*10) -> 2450.94 | G11: =OFFSET(Potencia!G4,0,($L$1-1)*10) -> 2450.94 | H11: =OFFSET(Potencia!H4,0,($L$1-1)*10) -> 3328.89 | I11: =OFFSET(Potencia!I4,0,($L$1-1)*10) -> 3328.89 | J11: =OFFSET(Potencia!J4,0,($L$1-1)*10) -> 3328.89 | K11: =OFFSET(Potencia!K4,0,($L$1-1)*10) -> - | L11: =OFFSET(Potencia!L4,0,($L$1-1)*10) -> -
B12: Hidráulica | C12: =OFFSET(Potencia!C5,0,($L$1-1)*10) -> 17106.25 | D12: =OFFSET(Potencia!D5,0,($L$1-1)*10) -> 17118.15 | E12: =OFFSET(Potencia!E5,0,($L$1-1)*10) -> 17337.59 | F12: =OFFSET(Potencia!F5,0,($L$1-1)*10) -> 17340.63 | G12: =OFFSET(Potencia!G5,0,($L$1-1)*10) -> 17346.86 | H12: =OFFSET(Potencia!H5,0,($L$1-1)*10) -> 20346.52878 | I12: =OFFSET(Potencia!I5,0,($L$1-1)*10) -> 20352.18378 | J12: =OFFSET(Potencia!J5,0,($L$1-1)*10) -> 20328.38678 | K12: =OFFSET(Potencia!K5,0,($L$1-1)*10) -> - | L12: =OFFSET(Potencia!L5,0,($L$1-1)*10) -> -
B13: Nuclear | C13: =OFFSET(Potencia!C6,0,($L$1-1)*10) -> 7515.37 | D13: =OFFSET(Potencia!D6,0,($L$1-1)*10) -> 7572.58 | E13: =OFFSET(Potencia!E6,0,($L$1-1)*10) -> 7572.58 | F13: =OFFSET(Potencia!F6,0,($L$1-1)*10) -> 7572.58 | G13: =OFFSET(Potencia!G6,0,($L$1-1)*10) -> 7572.58 | H13: =OFFSET(Potencia!H6,0,($L$1-1)*10) -> 7572.58 | I13: =OFFSET(Potencia!I6,0,($L$1-1)*10) -> 7572.58 | J13: =OFFSET(Potencia!J6,0,($L$1-1)*10) -> 7572.58 | K13: =OFFSET(Potencia!K6,0,($L$1-1)*10) -> - | L13: =OFFSET(Potencia!L6,0,($L$1-1)*10) -> -
B14: Carbón | C14: =OFFSET(Potencia!C7,0,($L$1-1)*10) -> 10873.95 | D14: =OFFSET(Potencia!D7,0,($L$1-1)*10) -> 11103.39 | E14: =OFFSET(Potencia!E7,0,($L$1-1)*10) -> 10595.47 | F14: =OFFSET(Potencia!F7,0,($L$1-1)*10) -> 10610.37 | G14: =OFFSET(Potencia!G7,0,($L$1-1)*10) -> 10468.02 | H14: =OFFSET(Potencia!H7,0,($L$1-1)*10) -> 10468.02 | I14: =OFFSET(Potencia!I7,0,($L$1-1)*10) -> 9535.87 | J14: =OFFSET(Potencia!J7,0,($L$1-1)*10) -> 9535.87 | K14: =OFFSET(Potencia!K7,0,($L$1-1)*10) -> - | L14: =OFFSET(Potencia!L7,0,($L$1-1)*10) -> -
B15: Fuel + Gas | C15: =OFFSET(Potencia!C8,0,($L$1-1)*10) -> 2144.79 | D15: =OFFSET(Potencia!D8,0,($L$1-1)*10) -> 806.52 | E15: =OFFSET(Potencia!E8,0,($L$1-1)*10) -> 505.52 | F15: =OFFSET(Potencia!F8,0,($L$1-1)*10) -> 505.52 | G15: =OFFSET(Potencia!G8,0,($L$1-1)*10) -> 505.52 | H15: =OFFSET(Potencia!H8,0,($L$1-1)*10) -> 0 | I15: =OFFSET(Potencia!I8,0,($L$1-1)*10) -> 0 | J15: =OFFSET(Potencia!J8,0,($L$1-1)*10) -> 0 | K15: =OFFSET(Potencia!K8,0,($L$1-1)*10) -> - | L15: =OFFSET(Potencia!L8,0,($L$1-1)*10) -> -
B16: Ciclo combinado | C16: =OFFSET(Potencia!C9,0,($L$1-1)*10) -> 24844.38 | D16: =OFFSET(Potencia!D9,0,($L$1-1)*10) -> 24911.73 | E16: =OFFSET(Potencia!E9,0,($L$1-1)*10) -> 24947.71 | F16: =OFFSET(Potencia!F9,0,($L$1-1)*10) -> 24947.71 | G16: =OFFSET(Potencia!G9,0,($L$1-1)*10) -> 24947.71 | H16: =OFFSET(Potencia!H9,0,($L$1-1)*10) -> 24947.71 | I16: =OFFSET(Potencia!I9,0,($L$1-1)*10) -> 24947.71 | J16: =OFFSET(Potencia!J9,0,($L$1-1)*10) -> 24947.71 | K16: =OFFSET(Potencia!K9,0,($L$1-1)*10) -> - | L16: =OFFSET(Potencia!L9,0,($L$1-1)*10) -> -
B17: Resto hidráulica (1) | C17: =OFFSET(Potencia!C10,0,($L$1-1)*10) -> 2030.95898 | D17: =OFFSET(Potencia!D10,0,($L$1-1)*10) -> 2036.42078 | E17: =OFFSET(Potencia!E10,0,($L$1-1)*10) -> 2039.92878 | F17: =OFFSET(Potencia!F10,0,($L$1-1)*10) -> 2094.92178 | G17: =OFFSET(Potencia!G10,0,($L$1-1)*10) -> 2094.92178 | H17: =OFFSET(Potencia!H10,0,($L$1-1)*10) -> - | I17: =OFFSET(Potencia!I10,0,($L$1-1)*10) -> - | J17: =OFFSET(Potencia!J10,0,($L$1-1)*10) -> - | K17: =OFFSET(Potencia!K10,0,($L$1-1)*10) -> - | L17: =OFFSET(Potencia!L10,0,($L$1-1)*10) -> -
B18: Eólica | C18: =OFFSET(Potencia!C11,0,($L$1-1)*10) -> 19561.05345 | D18: =OFFSET(Potencia!D11,0,($L$1-1)*10) -> 21018.08745 | E18: =OFFSET(Potencia!E11,0,($L$1-1)*10) -> 22608.70205 | F18: =OFFSET(Potencia!F11,0,($L$1-1)*10) -> 22852.97405 | G18: =OFFSET(Potencia!G11,0,($L$1-1)*10) -> 22871.44455 | H18: =OFFSET(Potencia!H11,0,($L$1-1)*10) -> 22873.24455 | I18: =OFFSET(Potencia!I11,0,($L$1-1)*10) -> 22900.24455 | J18: =OFFSET(Potencia!J11,0,($L$1-1)*10) -> 22841.44455 | K18: =OFFSET(Potencia!K11,0,($L$1-1)*10) -> - | L18: =OFFSET(Potencia!L11,0,($L$1-1)*10) -> -
B19: Solar fotovoltaica | C19: =OFFSET(Potencia!C12,0,($L$1-1)*10) -> 3645.21391 | D19: =OFFSET(Potencia!D12,0,($L$1-1)*10) -> 4032.05946 | E19: =OFFSET(Potencia!E12,0,($L$1-1)*10) -> 4293.59123 | F19: =OFFSET(Potencia!F12,0,($L$1-1)*10) -> 4396.50017 | G19: =OFFSET(Potencia!G12,0,($L$1-1)*10) -> 4402.66461 | H19: =OFFSET(Potencia!H12,0,($L$1-1)*10) -> 4418.10708 | I19: =OFFSET(Potencia!I12,0,($L$1-1)*10) -> 4429.59423 | J19: =OFFSET(Potencia!J12,0,($L$1-1)*10) -> 4430.09383 | K19: =OFFSET(Potencia!K12,0,($L$1-1)*10) -> - | L19: =OFFSET(Potencia!L12,0,($L$1-1)*10) -> -
B20: Solar térmica | C20: =OFFSET(Potencia!C13,0,($L$1-1)*10) -> 531.92 | D20: =OFFSET(Potencia!D13,0,($L$1-1)*10) -> 998.52 | E20: =OFFSET(Potencia!E13,0,($L$1-1)*10) -> 1949.92 | F20: =OFFSET(Potencia!F13,0,($L$1-1)*10) -> 2299.4275 | G20: =OFFSET(Potencia!G13,0,($L$1-1)*10) -> 2299.4275 | H20: =OFFSET(Potencia!H13,0,($L$1-1)*10) -> 2299.4275 | I20: =OFFSET(Potencia!I13,0,($L$1-1)*10) -> 2299.4275 | J20: =OFFSET(Potencia!J13,0,($L$1-1)*10) -> 2299.4275 | K20: =OFFSET(Potencia!K13,0,($L$1-1)*10) -> - | L20: =OFFSET(Potencia!L13,0,($L$1-1)*10) -> -
B21: Térmica renovable/Otras renovables (2) | C21: =OFFSET(Potencia!C14,0,($L$1-1)*10) -> 778.78391 | D21: =OFFSET(Potencia!D14,0,($L$1-1)*10) -> 882.91991 | E21: =OFFSET(Potencia!E14,0,($L$1-1)*10) -> 968.43241 | F21: =OFFSET(Potencia!F14,0,($L$1-1)*10) -> 944.44241 | G21: =OFFSET(Potencia!G14,0,($L$1-1)*10) -> 981.96541 | H21: =OFFSET(Potencia!H14,0,($L$1-1)*10) -> 742.16241 | I21: =OFFSET(Potencia!I14,0,($L$1-1)*10) -> 743.11741 | J21: =OFFSET(Potencia!J14,0,($L$1-1)*10) -> 742.46041 | K21: =OFFSET(Potencia!K14,0,($L$1-1)*10) -> - | L21: =OFFSET(Potencia!L14,0,($L$1-1)*10) -> -
B22: Térmica no renovable/Cogeneración y resto/Cogeneración (3) | C22: =OFFSET(Potencia!C15,0,($L$1-1)*10) -> 7098.0842 | D22: =OFFSET(Potencia!D15,0,($L$1-1)*10) -> 7179.0717 | E22: =OFFSET(Potencia!E15,0,($L$1-1)*10) -> 7117.1502 | F22: =OFFSET(Potencia!F15,0,($L$1-1)*10) -> 7057.8807 | G22: =OFFSET(Potencia!G15,0,($L$1-1)*10) -> 7047.8022 | H22: =OFFSET(Potencia!H15,0,($L$1-1)*10) -> 6607.9082 | I22: =OFFSET(Potencia!I15,0,($L$1-1)*10) -> 6600.4532 | J22: =OFFSET(Potencia!J15,0,($L$1-1)*10) -> 6503.7462 | K22: =OFFSET(Potencia!K15,0,($L$1-1)*10) -> - | L22: =OFFSET(Potencia!L15,0,($L$1-1)*10) -> -
B23: Residuos (4) | C23: =OFFSET(Potencia!C16,0,($L$1-1)*10) -> - | D23: =OFFSET(Potencia!D16,0,($L$1-1)*10) -> - | E23: =OFFSET(Potencia!E16,0,($L$1-1)*10) -> - | F23: =OFFSET(Potencia!F16,0,($L$1-1)*10) -> - | G23: =OFFSET(Potencia!G16,0,($L$1-1)*10) -> - | H23: =OFFSET(Potencia!H16,0,($L$1-1)*10) -> 677.406 | I23: =OFFSET(Potencia!I16,0,($L$1-1)*10) -> 677.406 | J23: =OFFSET(Potencia!J16,0,($L$1-1)*10) -> 669.996 | K23: =OFFSET(Potencia!K16,0,($L$1-1)*10) -> - | L23: =OFFSET(Potencia!L16,0,($L$1-1)*10) -> -
B24: Total | C24: =OFFSET(Potencia!C17,0,($L$1-1)*10) -> 96130.75445 | D24: =OFFSET(Potencia!D17,0,($L$1-1)*10) -> 97659.4493 | E24: =OFFSET(Potencia!E17,0,($L$1-1)*10) -> 99936.59467 | F24: =OFFSET(Potencia!F17,0,($L$1-1)*10) -> 100622.9566 | G24: =OFFSET(Potencia!G17,0,($L$1-1)*10) -> 100538.9161 | H24: =OFFSET(Potencia!H17,0,($L$1-1)*10) -> 100953.0945 | I24: =OFFSET(Potencia!I17,0,($L$1-1)*10) -> 100058.5867 | J24: =OFFSET(Potencia!J17,0,($L$1-1)*10) -> 99871.71527 | K24: =OFFSET(Potencia!K17,0,($L$1-1)*10) -> - | L24: =OFFSET(Potencia!L17,0,($L$1-1)*10) -> -
B25: (1) Incluye todas aquellas unidades menores de 50 MW que no pertenecen a ninguna unidad de gestión hidráulica (UGH).
B26: (2) Otras renovables incluyen biogás, biomasa, hidráulica marina y geotérmica. Los valores de potencia incluyen residuos hasta el 31/12/2014.
B27: (34) Los valores de potencia incluyen residuos hasta el 31/12/2014.
B28: (4) Potencia incluída en térmica renovable y térmica no renovable/cogeneración y resto/cogeneración hasta el 31/12/2014.
B29: Fuente Comisión Nacional de los Mercados y la Competencia (CNMC) en: resto hidráulica, eólica, solar fotovoltaica, solar térmica, térmica renovable/otras renovables, térmica no renovable/cogeneración y resto/cogeneración y residuos.
B30: =IF(L1=3,IF(MONTH(FACT)=1,"Datos a 31 de diciembre.",(CONCATENATE("Datos a 31 de diciembre. Para el año ",YEAR(FACT), " datos a ",TEXT(FACT-30,"mmmm")," de ",YEAR(FACT),"."))),"Datos a 31 de diciembre.") -> Datos a 31 de diciembre. Para el año 2017 datos a junio de 2017.
B31: A partir del 1/7/1996 se incluye GICC (Elcogás) en fuel/gas.
B32: A partir del 1/1/2011 se incluye GICC (Elcogás) en carbón, anteriormente en fuel/gas. Según el R.D. 134/2010 esta central está obligada a participar, como unidad vendedora que utiliza carbón autóctono como combustible, en el proceso de resolucion de restricciones por garantía de suministro.

Sheet Potencia Baleares
L1: 2
J5: Sistema eléctrico
J6: Periodo
C8: =OFFSET(Potencia!C19,0,($L$1-1)*10) -> 2016 | D8: =OFFSET(Potencia!D19,0,($L$1-1)*10) -> 2017 | E8: =OFFSET(Potencia!E19,0,($L$1-1)*10) -> 2018 | F8: =OFFSET(Potencia!F19,0,($L$1-1)*10) -> 2019 | G8: =OFFSET(Potencia!G19,0,($L$1-1)*10) -> 2020 | H8: =OFFSET(Potencia!H19,0,($L$1-1)*10) -> 2021 | I8: =OFFSET(Potencia!I19,0,($L$1-1)*10) -> 2022 | J8: =OFFSET(Potencia!J19,0,($L$1-1)*10) -> 2023 | K8: =OFFSET(Potencia!K19,0,($L$1-1)*10) -> 2024 | L8: =OFFSET(Potencia!L19,0,($L$1-1)*10) -> 2025
B10: Carbón | C10: =OFFSET(Potencia!C20,0,($L$1-1)*10) -> 468.4 | D10: =OFFSET(Potencia!D20,0,($L$1-1)*10) -> 468.4 | E10: =OFFSET(Potencia!E20,0,($L$1-1)*10) -> - | F10: =OFFSET(Potencia!F20,0,($L$1-1)*10) -> - | G10: =OFFSET(Potencia!G20,0,($L$1-1)*10) -> - | H10: =OFFSET(Potencia!H20,0,($L$1-1)*10) -> - | I10: =OFFSET(Potencia!I20,0,($L$1-1)*10) -> - | J10: =OFFSET(Potencia!J20,0,($L$1-1)*10) -> - | K10: =OFFSET(Potencia!K20,0,($L$1-1)*10) -> - | L10: =OFFSET(Potencia!L20,0,($L$1-1)*10) -> -
B11: Motores diesel | C11: =OFFSET(Potencia!C21,0,($L$1-1)*10) -> 182 | D11: =OFFSET(Potencia!D21,0,($L$1-1)*10) -> 182 | E11: =OFFSET(Potencia!E21,0,($L$1-1)*10) -> - | F11: =OFFSET(Potencia!F21,0,($L$1-1)*10) -> - | G11: =OFFSET(Potencia!G21,0,($L$1-1)*10) -> - | H11: =OFFSET(Potencia!H21,0,($L$1-1)*10) -> - | I11: =OFFSET(Potencia!I21,0,($L$1-1)*10) -> - | J11: =OFFSET(Potencia!J21,0,($L$1-1)*10) -> - | K11: =OFFSET(Potencia!K21,0,($L$1-1)*10) -> - | L11: =OFFSET(Potencia!L21,0,($L$1-1)*10) -> -
B12: Turbina de gas | C12: =OFFSET(Potencia!C22,0,($L$1-1)*10) -> 605.4 | D12: =OFFSET(Potencia!D22,0,($L$1-1)*10) -> 605.4 | E12: =OFFSET(Potencia!E22,0,($L$1-1)*10) -> - | F12: =OFFSET(Potencia!F22,0,($L$1-1)*10) -> - | G12: =OFFSET(Potencia!G22,0,($L$1-1)*10) -> - | H12: =OFFSET(Potencia!H22,0,($L$1-1)*10) -> - | I12: =OFFSET(Potencia!I22,0,($L$1-1)*10) -> - | J12: =OFFSET(Potencia!J22,0,($L$1-1)*10) -> - | K12: =OFFSET(Potencia!K22,0,($L$1-1)*10) -> - | L12: =OFFSET(Potencia!L22,0,($L$1-1)*10) -> -
B13: Fuel + Gas | C13: =OFFSET(Potencia!C23,0,($L$1-1)*10) -> 787.4 | D13: =OFFSET(Potencia!D23,0,($L$1-1)*10) -> 787.4 | E13: =OFFSET(Potencia!E23,0,($L$1-1)*10) -> - | F13: =OFFSET(Potencia!F23,0,($L$1-1)*10) -> - | G13: =OFFSET(Potencia!G23,0,($L$1-1)*10) -> - | H13: =OFFSET(Potencia!H23,0,($L$1-1)*10) -> - | I13: =OFFSET(Potencia!I23,0,($L$1-1)*10) -> - | J13: =OFFSET(Potencia!J23,0,($L$1-1)*10) -> - | K13: =OFFSET(Potencia!K23,0,($L$1-1)*10) -> - | L13: =OFFSET(Potencia!L23,0,($L$1-1)*10) -> -
B14: Ciclo combinado | C14: =OFFSET(Potencia!C24,0,($L$1-1)*10) -> 857.95 | D14: =OFFSET(Potencia!D24,0,($L$1-1)*10) -> 857.95 | E14: =OFFSET(Potencia!E24,0,($L$1-1)*10) -> - | F14: =OFFSET(Potencia!F24,0,($L$1-1)*10) -> - | G14: =OFFSET(Potencia!G24,0,($L$1-1)*10) -> - | H14: =OFFSET(Potencia!H24,0,($L$1-1)*10) -> - | I14: =OFFSET(Potencia!I24,0,($L$1-1)*10) -> - | J14: =OFFSET(Potencia!J24,0,($L$1-1)*10) -> - | K14: =OFFSET(Potencia!K24,0,($L$1-1)*10) -> - | L14: =OFFSET(Potencia!L24,0,($L$1-1)*10) -> -
B15: Generación auxiliar (1) | C15: =OFFSET(Potencia!C25,0,($L$1-1)*10) -> - | D15: =OFFSET(Potencia!D25,0,($L$1-1)*10) -> 12.72 | E15: =OFFSET(Potencia!E25,0,($L$1-1)*10) -> - | F15: =OFFSET(Potencia!F25,0,($L$1-1)*10) -> - | G15: =OFFSET(Potencia!G25,0,($L$1-1)*10) -> - | H15: =OFFSET(Potencia!H25,0,($L$1-1)*10) -> - | I15: =OFFSET(Potencia!I25,0,($L$1-1)*10) -> - | J15: =OFFSET(Potencia!J25,0,($L$1-1)*10) -> - | K15: =OFFSET(Potencia!K25,0,($L$1-1)*10) -> - | L15: =OFFSET(Potencia!L25,0,($L$1-1)*10) -> -
B16: Eólica | C16: =OFFSET(Potencia!C26,0,($L$1-1)*10) -> 3.6763 | D16: =OFFSET(Potencia!D26,0,($L$1-1)*10) -> 3.6763 | E16: =OFFSET(Potencia!E26,0,($L$1-1)*10) -> - | F16: =OFFSET(Potencia!F26,0,($L$1-1)*10) -> - | G16: =OFFSET(Potencia!G26,0,($L$1-1)*10) -> - | H16: =OFFSET(Potencia!H26,0,($L$1-1)*10) -> - | I16: =OFFSET(Potencia!I26,0,($L$1-1)*10) -> - | J16: =OFFSET(Potencia!J26,0,($L$1-1)*10) -> - | K16: =OFFSET(Potencia!K26,0,($L$1-1)*10) -> - | L16: =OFFSET(Potencia!L26,0,($L$1-1)*10) -> -
B17: Solar fotovoltaica | C17: =OFFSET(Potencia!C27,0,($L$1-1)*10) -> 77.76978 | D17: =OFFSET(Potencia!D27,0,($L$1-1)*10) -> 77.76578 | E17: =OFFSET(Potencia!E27,0,($L$1-1)*10) -> - | F17: =OFFSET(Potencia!F27,0,($L$1-1)*10) -> - | G17: =OFFSET(Potencia!G27,0,($L$1-1)*10) -> - | H17: =OFFSET(Potencia!H27,0,($L$1-1)*10) -> - | I17: =OFFSET(Potencia!I27,0,($L$1-1)*10) -> - | J17: =OFFSET(Potencia!J27,0,($L$1-1)*10) -> - | K17: =OFFSET(Potencia!K27,0,($L$1-1)*10) -> - | L17: =OFFSET(Potencia!L27,0,($L$1-1)*10) -> -
B18: Térmica renovable/Otras renovables (2) | C18: =OFFSET(Potencia!C28,0,($L$1-1)*10) -> 2.13 | D18: =OFFSET(Potencia!D28,0,($L$1-1)*10) -> 2.13 | E18: =OFFSET(Potencia!E28,0,($L$1-1)*10) -> - | F18: =OFFSET(Potencia!F28,0,($L$1-1)*10) -> - | G18: =OFFSET(Potencia!G28,0,($L$1-1)*10) -> - | H18: =OFFSET(Potencia!H28,0,($L$1-1)*10) -> - | I18: =OFFSET(Potencia!I28,0,($L$1-1)*10) -> - | J18: =OFFSET(Potencia!J28,0,($L$1-1)*10) -> - | K18: =OFFSET(Potencia!K28,0,($L$1-1)*10) -> - | L18: =OFFSET(Potencia!L28,0,($L$1-1)*10) -> -
B19: Térmica no renovable/Cogeneración y resto/Cogeneración (3) | C19: =OFFSET(Potencia!C29,0,($L$1-1)*10) -> 10.825 | D19: =OFFSET(Potencia!D29,0,($L$1-1)*10) -> 10.825 | E19: =OFFSET(Potencia!E29,0,($L$1-1)*10) -> - | F19: =OFFSET(Potencia!F29,0,($L$1-1)*10) -> - | G19: =OFFSET(Potencia!G29,0,($L$1-1)*10) -> - | H19: =OFFSET(Potencia!H29,0,($L$1-1)*10) -> - | I19: =OFFSET(Potencia!I29,0,($L$1-1)*10) -> - | J19: =OFFSET(Potencia!J29,0,($L$1-1)*10) -> - | K19: =OFFSET(Potencia!K29,0,($L$1-1)*10) -> - | L19: =OFFSET(Potencia!L29,0,($L$1-1)*10) -> -
B20: Residuos (4) | C20: =OFFSET(Potencia!C30,0,($L$1-1)*10) -> 74.8 | D20: =OFFSET(Potencia!D30,0,($L$1-1)*10) -> 74.8 | E20: =OFFSET(Potencia!E30,0,($L$1-1)*10) -> - | F20: =OFFSET(Potencia!F30,0,($L$1-1)*10) -> - | G20: =OFFSET(Potencia!G30,0,($L$1-1)*10) -> - | H20: =OFFSET(Potencia!H30,0,($L$1-1)*10) -> - | I20: =OFFSET(Potencia!I30,0,($L$1-1)*10) -> - | J20: =OFFSET(Potencia!J30,0,($L$1-1)*10) -> - | K20: =OFFSET(Potencia!K30,0,($L$1-1)*10) -> - | L20: =OFFSET(Potencia!L30,0,($L$1-1)*10) -> -
B21: Total | C21: =OFFSET(Potencia!C31,0,($L$1-1)*10) -> 2282.95108 | D21: =OFFSET(Potencia!D31,0,($L$1-1)*10) -> 2295.66708 | E21: =OFFSET(Potencia!E31,0,($L$1-1)*10) -> - | F21: =OFFSET(Potencia!F31,0,($L$1-1)*10) -> - | G21: =OFFSET(Potencia!G31,0,($L$1-1)*10) -> - | H21: =OFFSET(Potencia!H31,0,($L$1-1)*10) -> - | I21: =OFFSET(Potencia!I31,0,($L$1-1)*10) -> - | J21: =OFFSET(Potencia!J31,0,($L$1-1)*10) -> - | K21: =OFFSET(Potencia!K31,0,($L$1-1)*10) -> - | L21: =OFFSET(Potencia!L31,0,($L$1-1)*10) -> -
B22: (1) Grupos de emergencia que se instalan de forma transitoria en determinadas zonas para cubrir un déficit de generación.
B23: (2) Otras renovables incluyen biogás y biomasa. Los valores de potencia incluyen residuos hasta el 31/12/2014.
B24: (3) Los valores de potencia incluyen residuos hasta el 31/12/2014.
B25: (4) Potencia incluída en térmica renovable y térmica no renovable/cogeneración y resto/cogeneración hasta el 31/12/2014.
B26: Fuente Comisión Nacional de los Mercados y la Competencia (CNMC) en: eólica, solar fotovoltaica, térmica renovable/otras renovables, térmica no renovable/cogeneración y resto/cogeneración y residuos.
B27: =IF(L1=2,IF(MONTH(FACT)=1,"Datos a 31 de diciembre.",(CONCATENATE("Datos a 31 de diciembre. Para el año ",YEAR(FACT), " datos a ",TEXT(FACT-30,"mmmm")," de ",YEAR(FACT),"."))),"Datos a 31 de diciembre.") -> Datos a 31 de diciembre. Para el año 2017 datos a junio de 2017.

Sheet Potencia Canarias
L1: 2
J5: Sistema eléctrico
J6: Periodo
C8: =OFFSET(Potencia!C33,0,($L$1-1)*10) -> 2016 | D8: =OFFSET(Potencia!D33,0,($L$1-1)*10) -> 2017 | E8: =OFFSET(Potencia!E33,0,($L$1-1)*10) -> 2018 | F8: =OFFSET(Potencia!F33,0,($L$1-1)*10) -> 2019 | G8: =OFFSET(Potencia!G33,0,($L$1-1)*10) -> 2020 | H8: =OFFSET(Potencia!H33,0,($L$1-1)*10) -> 2021 | I8: =OFFSET(Potencia!I33,0,($L$1-1)*10) -> 2022 | J8: =OFFSET(Potencia!J33,0,($L$1-1)*10) -> 2023 | K8: =OFFSET(Potencia!K33,0,($L$1-1)*10) -> 2024 | L8: =OFFSET(Potencia!L33,0,($L$1-1)*10) -> 2025
B10: Hidráulica | C10: =OFFSET(Potencia!C34,0,($L$1-1)*10) -> 1.263 | D10: =OFFSET(Potencia!D34,0,($L$1-1)*10) -> 1.263 | E10: =OFFSET(Potencia!E34,0,($L$1-1)*10) -> - | F10: =OFFSET(Potencia!F34,0,($L$1-1)*10) -> - | G10: =OFFSET(Potencia!G34,0,($L$1-1)*10) -> - | H10: =OFFSET(Potencia!H34,0,($L$1-1)*10) -> - | I10: =OFFSET(Potencia!I34,0,($L$1-1)*10) -> - | J10: =OFFSET(Potencia!J34,0,($L$1-1)*10) -> - | K10: =OFFSET(Potencia!K34,0,($L$1-1)*10) -> - | L10: =OFFSET(Potencia!L34,0,($L$1-1)*10) -> -
B11: Motores diesel | C11: =OFFSET(Potencia!C35,0,($L$1-1)*10) -> 495.92 | D11: =OFFSET(Potencia!D35,0,($L$1-1)*10) -> 495.92 | E11: =OFFSET(Potencia!E35,0,($L$1-1)*10) -> - | F11: =OFFSET(Potencia!F35,0,($L$1-1)*10) -> - | G11: =OFFSET(Potencia!G35,0,($L$1-1)*10) -> - | H11: =OFFSET(Potencia!H35,0,($L$1-1)*10) -> - | I11: =OFFSET(Potencia!I35,0,($L$1-1)*10) -> - | J11: =OFFSET(Potencia!J35,0,($L$1-1)*10) -> - | K11: =OFFSET(Potencia!K35,0,($L$1-1)*10) -> - | L11: =OFFSET(Potencia!L35,0,($L$1-1)*10) -> -
B12: Turbina de gas | C12: =OFFSET(Potencia!C36,0,($L$1-1)*10) -> 557.14 | D12: =OFFSET(Potencia!D36,0,($L$1-1)*10) -> 557.14 | E12: =OFFSET(Potencia!E36,0,($L$1-1)*10) -> - | F12: =OFFSET(Potencia!F36,0,($L$1-1)*10) -> - | G12: =OFFSET(Potencia!G36,0,($L$1-1)*10) -> - | H12: =OFFSET(Potencia!H36,0,($L$1-1)*10) -> - | I12: =OFFSET(Potencia!I36,0,($L$1-1)*10) -> - | J12: =OFFSET(Potencia!J36,0,($L$1-1)*10) -> - | K12: =OFFSET(Potencia!K36,0,($L$1-1)*10) -> - | L12: =OFFSET(Potencia!L36,0,($L$1-1)*10) -> -
B13: Turbina de vapor | C13: =OFFSET(Potencia!C37,0,($L$1-1)*10) -> 482.64 | D13: =OFFSET(Potencia!D37,0,($L$1-1)*10) -> 482.64 | E13: =OFFSET(Potencia!E37,0,($L$1-1)*10) -> - | F13: =OFFSET(Potencia!F37,0,($L$1-1)*10) -> - | G13: =OFFSET(Potencia!G37,0,($L$1-1)*10) -> - | H13: =OFFSET(Potencia!H37,0,($L$1-1)*10) -> - | I13: =OFFSET(Potencia!I37,0,($L$1-1)*10) -> - | J13: =OFFSET(Potencia!J37,0,($L$1-1)*10) -> - | K13: =OFFSET(Potencia!K37,0,($L$1-1)*10) -> - | L13: =OFFSET(Potencia!L37,0,($L$1-1)*10) -> -
B14: Fuel + Gas | C14: =OFFSET(Potencia!C38,0,($L$1-1)*10) -> 1535.7 | D14: =OFFSET(Potencia!D38,0,($L$1-1)*10) -> 1535.7 | E14: =OFFSET(Potencia!E38,0,($L$1-1)*10) -> - | F14: =OFFSET(Potencia!F38,0,($L$1-1)*10) -> - | G14: =OFFSET(Potencia!G38,0,($L$1-1)*10) -> - | H14: =OFFSET(Potencia!H38,0,($L$1-1)*10) -> - | I14: =OFFSET(Potencia!I38,0,($L$1-1)*10) -> - | J14: =OFFSET(Potencia!J38,0,($L$1-1)*10) -> - | K14: =OFFSET(Potencia!K38,0,($L$1-1)*10) -> - | L14: =OFFSET(Potencia!L38,0,($L$1-1)*10) -> -
B15: Ciclo combinado (1) | C15: =OFFSET(Potencia!C39,0,($L$1-1)*10) -> 864.2 | D15: =OFFSET(Potencia!D39,0,($L$1-1)*10) -> 864.2 | E15: =OFFSET(Potencia!E39,0,($L$1-1)*10) -> - | F15: =OFFSET(Potencia!F39,0,($L$1-1)*10) -> - | G15: =OFFSET(Potencia!G39,0,($L$1-1)*10) -> - | H15: =OFFSET(Potencia!H39,0,($L$1-1)*10) -> - | I15: =OFFSET(Potencia!I39,0,($L$1-1)*10) -> - | J15: =OFFSET(Potencia!J39,0,($L$1-1)*10) -> - | K15: =OFFSET(Potencia!K39,0,($L$1-1)*10) -> - | L15: =OFFSET(Potencia!L39,0,($L$1-1)*10) -> -
B16: Generación auxiliar (2) | C16: =OFFSET(Potencia!C40,0,($L$1-1)*10) -> - | D16: =OFFSET(Potencia!D40,0,($L$1-1)*10) -> - | E16: =OFFSET(Potencia!E40,0,($L$1-1)*10) -> - | F16: =OFFSET(Potencia!F40,0,($L$1-1)*10) -> - | G16: =OFFSET(Potencia!G40,0,($L$1-1)*10) -> - | H16: =OFFSET(Potencia!H40,0,($L$1-1)*10) -> - | I16: =OFFSET(Potencia!I40,0,($L$1-1)*10) -> - | J16: =OFFSET(Potencia!J40,0,($L$1-1)*10) -> - | K16: =OFFSET(Potencia!K40,0,($L$1-1)*10) -> - | L16: =OFFSET(Potencia!L40,0,($L$1-1)*10) -> -
B17: Hidroeólica | C17: =OFFSET(Potencia!C41,0,($L$1-1)*10) -> 11.39 | D17: =OFFSET(Potencia!D41,0,($L$1-1)*10) -> 11.39 | E17: =OFFSET(Potencia!E41,0,($L$1-1)*10) -> - | F17: =OFFSET(Potencia!F41,0,($L$1-1)*10) -> - | G17: =OFFSET(Potencia!G41,0,($L$1-1)*10) -> - | H17: =OFFSET(Potencia!H41,0,($L$1-1)*10) -> - | I17: =OFFSET(Potencia!I41,0,($L$1-1)*10) -> - | J17: =OFFSET(Potencia!J41,0,($L$1-1)*10) -> - | K17: =OFFSET(Potencia!K41,0,($L$1-1)*10) -> - | L17: =OFFSET(Potencia!L41,0,($L$1-1)*10) -> -
B18: Resto hidráulica | C18: =OFFSET(Potencia!C42,0,($L$1-1)*10) -> - | D18: =OFFSET(Potencia!D42,0,($L$1-1)*10) -> - | E18: =OFFSET(Potencia!E42,0,($L$1-1)*10) -> - | F18: =OFFSET(Potencia!F42,0,($L$1-1)*10) -> - | G18: =OFFSET(Potencia!G42,0,($L$1-1)*10) -> - | H18: =OFFSET(Potencia!H42,0,($L$1-1)*10) -> - | I18: =OFFSET(Potencia!I42,0,($L$1-1)*10) -> - | J18: =OFFSET(Potencia!J42,0,($L$1-1)*10) -> - | K18: =OFFSET(Potencia!K42,0,($L$1-1)*10) -> - | L18: =OFFSET(Potencia!L42,0,($L$1-1)*10) -> -
B19: Eólica | C19: =OFFSET(Potencia!C43,0,($L$1-1)*10) -> 152.59 | D19: =OFFSET(Potencia!D43,0,($L$1-1)*10) -> 135.4 | E19: =OFFSET(Potencia!E43,0,($L$1-1)*10) -> - | F19: =OFFSET(Potencia!F43,0,($L$1-1)*10) -> - | G19: =OFFSET(Potencia!G43,0,($L$1-1)*10) -> - | H19: =OFFSET(Potencia!H43,0,($L$1-1)*10) -> - | I19: =OFFSET(Potencia!I43,0,($L$1-1)*10) -> - | J19: =OFFSET(Potencia!J43,0,($L$1-1)*10) -> - | K19: =OFFSET(Potencia!K43,0,($L$1-1)*10) -> - | L19: =OFFSET(Potencia!L43,0,($L$1-1)*10) -> -
B20: Solar fotovoltaica | C20: =OFFSET(Potencia!C44,0,($L$1-1)*10) -> 166.46813 | D20: =OFFSET(Potencia!D44,0,($L$1-1)*10) -> 166.46813 | E20: =OFFSET(Potencia!E44,0,($L$1-1)*10) -> - | F20: =OFFSET(Potencia!F44,0,($L$1-1)*10) -> - | G20: =OFFSET(Potencia!G44,0,($L$1-1)*10) -> - | H20: =OFFSET(Potencia!H44,0,($L$1-1)*10) -> - | I20: =OFFSET(Potencia!I44,0,($L$1-1)*10) -> - | J20: =OFFSET(Potencia!J44,0,($L$1-1)*10) -> - | K20: =OFFSET(Potencia!K44,0,($L$1-1)*10) -> - | L20: =OFFSET(Potencia!L44,0,($L$1-1)*10) -> -
B21: Térmica renovable/Otras renovables (3) | C21: =OFFSET(Potencia!C45,0,($L$1-1)*10) -> 3.368 | D21: =OFFSET(Potencia!D45,0,($L$1-1)*10) -> 3.368 | E21: =OFFSET(Potencia!E45,0,($L$1-1)*10) -> - | F21: =OFFSET(Potencia!F45,0,($L$1-1)*10) -> - | G21: =OFFSET(Potencia!G45,0,($L$1-1)*10) -> - | H21: =OFFSET(Potencia!H45,0,($L$1-1)*10) -> - | I21: =OFFSET(Potencia!I45,0,($L$1-1)*10) -> - | J21: =OFFSET(Potencia!J45,0,($L$1-1)*10) -> - | K21: =OFFSET(Potencia!K45,0,($L$1-1)*10) -> - | L21: =OFFSET(Potencia!L45,0,($L$1-1)*10) -> -
B22: Térmica no renovable/Cogeneración y resto/Cogeneración | C22: =OFFSET(Potencia!C46,0,($L$1-1)*10) -> 33.268 | D22: =OFFSET(Potencia!D46,0,($L$1-1)*10) -> 33.268 | E22: =OFFSET(Potencia!E46,0,($L$1-1)*10) -> - | F22: =OFFSET(Potencia!F46,0,($L$1-1)*10) -> - | G22: =OFFSET(Potencia!G46,0,($L$1-1)*10) -> - | H22: =OFFSET(Potencia!H46,0,($L$1-1)*10) -> - | I22: =OFFSET(Potencia!I46,0,($L$1-1)*10) -> - | J22: =OFFSET(Potencia!J46,0,($L$1-1)*10) -> - | K22: =OFFSET(Potencia!K46,0,($L$1-1)*10) -> - | L22: =OFFSET(Potencia!L46,0,($L$1-1)*10) -> -
B23: Total | C23: =OFFSET(Potencia!C47,0,($L$1-1)*10) -> 2768.24713 | D23: =OFFSET(Potencia!D47,0,($L$1-1)*10) -> 2751.05713 | E23: =OFFSET(Potencia!E47,0,($L$1-1)*10) -> - | F23: =OFFSET(Potencia!F47,0,($L$1-1)*10) -> - | G23: =OFFSET(Potencia!G47,0,($L$1-1)*10) -> - | H23: =OFFSET(Potencia!H47,0,($L$1-1)*10) -> - | I23: =OFFSET(Potencia!I47,0,($L$1-1)*10) -> - | J23: =OFFSET(Potencia!J47,0,($L$1-1)*10) -> - | K23: =OFFSET(Potencia!K47,0,($L$1-1)*10) -> - | L23: =OFFSET(Potencia!L47,0,($L$1-1)*10) -> -
B24: (1) Utiliza gasoil como combustible principal.
B25: (2) Grupos de emergencia que se instalan de forma transitoria en determinadas zonas para cubrir un déficit de generación.
B26: (3) Otras renovables incluyen biogás y biomasa.
B27: Fuente Comisión Nacional de los Mercados y la Competencia (CNMC) en: resto hidráulica, eólica, solar fotovoltaica, térmica renovable/otras renovables y térmica no renovable/cogeneración y resto/cogeneración.
B28: =IF(L1=2,IF(MONTH(FACT)=1,"Datos a 31 de diciembre.",(CONCATENATE("Datos a 31 de diciembre. Para el año ",YEAR(FACT), " datos a ",TEXT(FACT-30,"mmmm")," de ",YEAR(FACT),"."))),"Datos a 31 de diciembre.") -> Datos a 31 de diciembre. Para el año 2017 datos a junio de 2017.

Sheet Potencia Ceuta
L1: 2
J5: Sistema eléctrico
J6: Periodo
C8: =OFFSET(Potencia!C49,0,($L$1-1)*10) -> 2016 | D8: =OFFSET(Potencia!D49,0,($L$1-1)*10) -> 2017 | E8: =OFFSET(Potencia!E49,0,($L$1-1)*10) -> 2018 | F8: =OFFSET(Potencia!F49,0,($L$1-1)*10) -> 2019 | G8: =OFFSET(Potencia!G49,0,($L$1-1)*10) -> 2020 | H8: =OFFSET(Potencia!H49,0,($L$1-1)*10) -> 2021 | I8: =OFFSET(Potencia!I49,0,($L$1-1)*10) -> 2022 | J8: =OFFSET(Potencia!J49,0,($L$1-1)*10) -> 2023 | K8: =OFFSET(Potencia!K49,0,($L$1-1)*10) -> 2024 | L8: =OFFSET(Potencia!L49,0,($L$1-1)*10) -> 2025
B10: Motores diesel | C10: =OFFSET(Potencia!C50,0,($L$1-1)*10) -> 77.52 | D10: =OFFSET(Potencia!D50,0,($L$1-1)*10) -> 77.52 | E10: =OFFSET(Potencia!E50,0,($L$1-1)*10) -> - | F10: =OFFSET(Potencia!F50,0,($L$1-1)*10) -> - | G10: =OFFSET(Potencia!G50,0,($L$1-1)*10) -> - | H10: =OFFSET(Potencia!H50,0,($L$1-1)*10) -> - | I10: =OFFSET(Potencia!I50,0,($L$1-1)*10) -> - | J10: =OFFSET(Potencia!J50,0,($L$1-1)*10) -> - | K10: =OFFSET(Potencia!K50,0,($L$1-1)*10) -> - | L10: =OFFSET(Potencia!L50,0,($L$1-1)*10) -> -
B11: Turbina de gas | C11: =OFFSET(Potencia!C51,0,($L$1-1)*10) -> 13.3 | D11: =OFFSET(Potencia!D51,0,($L$1-1)*10) -> 13.3 | E11: =OFFSET(Potencia!E51,0,($L$1-1)*10) -> - | F11: =OFFSET(Potencia!F51,0,($L$1-1)*10) -> - | G11: =OFFSET(Potencia!G51,0,($L$1-1)*10) -> - | H11: =OFFSET(Potencia!H51,0,($L$1-1)*10) -> - | I11: =OFFSET(Potencia!I51,0,($L$1-1)*10) -> - | J11: =OFFSET(Potencia!J51,0,($L$1-1)*10) -> - | K11: =OFFSET(Potencia!K51,0,($L$1-1)*10) -> - | L11: =OFFSET(Potencia!L51,0,($L$1-1)*10) -> -
B12: Fuel + Gas | C12: =OFFSET(Potencia!C52,0,($L$1-1)*10) -> 90.82 | D12: =OFFSET(Potencia!D52,0,($L$1-1)*10) -> 90.82 | E12: =OFFSET(Potencia!E52,0,($L$1-1)*10) -> - | F12: =OFFSET(Potencia!F52,0,($L$1-1)*10) -> - | G12: =OFFSET(Potencia!G52,0,($L$1-1)*10) -> - | H12: =OFFSET(Potencia!H52,0,($L$1-1)*10) -> - | I12: =OFFSET(Potencia!I52,0,($L$1-1)*10) -> - | J12: =OFFSET(Potencia!J52,0,($L$1-1)*10) -> - | K12: =OFFSET(Potencia!K52,0,($L$1-1)*10) -> - | L12: =OFFSET(Potencia!L52,0,($L$1-1)*10) -> -
B13: Total | C13: =OFFSET(Potencia!C53,0,($L$1-1)*10) -> 90.82 | D13: =OFFSET(Potencia!D53,0,($L$1-1)*10) -> 90.82 | E13: =OFFSET(Potencia!E53,0,($L$1-1)*10) -> - | F13: =OFFSET(Potencia!F53,0,($L$1-1)*10) -> - | G13: =OFFSET(Potencia!G53,0,($L$1-1)*10) -> - | H13: =OFFSET(Potencia!H53,0,($L$1-1)*10) -> - | I13: =OFFSET(Potencia!I53,0,($L$1-1)*10) -> - | J13: =OFFSET(Potencia!J53,0,($L$1-1)*10) -> - | K13: =OFFSET(Potencia!K53,0,($L$1-1)*10) -> - | L13: =OFFSET(Potencia!L53,0,($L$1-1)*10) -> -
B14: =IF(L1=2,IF(MONTH(FACT)=1,"Datos a 31 de diciembre.",(CONCATENATE("Datos a 31 de diciembre. Para el año ",YEAR(FACT), " datos a ",TEXT(FACT-30,"mmmm")," de ",YEAR(FACT),"."))),"Datos a 31 de diciembre.") -> Datos a 31 de diciembre. Para el año 2017 datos a junio de 2017.

Sheet Potencia Melilla
L1: 2
J5: Sistema eléctrico
J6: Periodo
C8: =OFFSET(Potencia!C55,0,($L$1-1)*10) -> 2016 | D8: =OFFSET(Potencia!D55,0,($L$1-1)*10) -> 2017 | E8: =OFFSET(Potencia!E55,0,($L$1-1)*10) -> 2018 | F8: =OFFSET(Potencia!F55,0,($L$1-1)*10) -> 2019 | G8: =OFFSET(Potencia!G55,0,($L$1-1)*10) -> 2020 | H8: =OFFSET(Potencia!H55,0,($L$1-1)*10) -> 2021 | I8: =OFFSET(Potencia!I55,0,($L$1-1)*10) -> 2022 | J8: =OFFSET(Potencia!J55,0,($L$1-1)*10) -> 2023 | K8: =OFFSET(Potencia!K55,0,($L$1-1)*10) -> 2024 | L8: =OFFSET(Potencia!L55,0,($L$1-1)*10) -> 2025
B10: Motores diesel | C10: =OFFSET(Potencia!C56,0,($L$1-1)*10) -> 64.64 | D10: =OFFSET(Potencia!D56,0,($L$1-1)*10) -> 64.64 | E10: =OFFSET(Potencia!E56,0,($L$1-1)*10) -> - | F10: =OFFSET(Potencia!F56,0,($L$1-1)*10) -> - | G10: =OFFSET(Potencia!G56,0,($L$1-1)*10) -> - | H10: =OFFSET(Potencia!H56,0,($L$1-1)*10) -> - | I10: =OFFSET(Potencia!I56,0,($L$1-1)*10) -> - | J10: =OFFSET(Potencia!J56,0,($L$1-1)*10) -> - | K10: =OFFSET(Potencia!K56,0,($L$1-1)*10) -> - | L10: =OFFSET(Potencia!L56,0,($L$1-1)*10) -> -
B11: Turbina de gas | C11: =OFFSET(Potencia!C57,0,($L$1-1)*10) -> 11.5 | D11: =OFFSET(Potencia!D57,0,($L$1-1)*10) -> 11.5 | E11: =OFFSET(Potencia!E57,0,($L$1-1)*10) -> - | F11: =OFFSET(Potencia!F57,0,($L$1-1)*10) -> - | G11: =OFFSET(Potencia!G57,0,($L$1-1)*10) -> - | H11: =OFFSET(Potencia!H57,0,($L$1-1)*10) -> - | I11: =OFFSET(Potencia!I57,0,($L$1-1)*10) -> - | J11: =OFFSET(Potencia!J57,0,($L$1-1)*10) -> - | K11: =OFFSET(Potencia!K57,0,($L$1-1)*10) -> - | L11: =OFFSET(Potencia!L57,0,($L$1-1)*10) -> -
B12: Fuel + Gas | C12: =OFFSET(Potencia!C58,0,($L$1-1)*10) -> 76.14 | D12: =OFFSET(Potencia!D58,0,($L$1-1)*10) -> 76.14 | E12: =OFFSET(Potencia!E58,0,($L$1-1)*10) -> - | F12: =OFFSET(Potencia!F58,0,($L$1-1)*10) -> - | G12: =OFFSET(Potencia!G58,0,($L$1-1)*10) -> - | H12: =OFFSET(Potencia!H58,0,($L$1-1)*10) -> - | I12: =OFFSET(Potencia!I58,0,($L$1-1)*10) -> - | J12: =OFFSET(Potencia!J58,0,($L$1-1)*10) -> - | K12: =OFFSET(Potencia!K58,0,($L$1-1)*10) -> - | L12: =OFFSET(Potencia!L58,0,($L$1-1)*10) -> -
B13: Solar fotovoltaica | C13: =OFFSET(Potencia!C59,0,($L$1-1)*10) -> 0.0579 | D13: =OFFSET(Potencia!D59,0,($L$1-1)*10) -> 0.0579 | E13: =OFFSET(Potencia!E59,0,($L$1-1)*10) -> - | F13: =OFFSET(Potencia!F59,0,($L$1-1)*10) -> - | G13: =OFFSET(Potencia!G59,0,($L$1-1)*10) -> - | H13: =OFFSET(Potencia!H59,0,($L$1-1)*10) -> - | I13: =OFFSET(Potencia!I59,0,($L$1-1)*10) -> - | J13: =OFFSET(Potencia!J59,0,($L$1-1)*10) -> - | K13: =OFFSET(Potencia!K59,0,($L$1-1)*10) -> - | L13: =OFFSET(Potencia!L59,0,($L$1-1)*10) -> -
B14: Térmica no renovable/Cogeneración y resto/Cogeneración | C14: =OFFSET(Potencia!C60,0,($L$1-1)*10) -> - | D14: =OFFSET(Potencia!D60,0,($L$1-1)*10) -> - | E14: =OFFSET(Potencia!E60,0,($L$1-1)*10) -> - | F14: =OFFSET(Potencia!F60,0,($L$1-1)*10) -> - | G14: =OFFSET(Potencia!G60,0,($L$1-1)*10) -> - | H14: =OFFSET(Potencia!H60,0,($L$1-1)*10) -> - | I14: =OFFSET(Potencia!I60,0,($L$1-1)*10) -> - | J14: =OFFSET(Potencia!J60,0,($L$1-1)*10) -> - | K14: =OFFSET(Potencia!K60,0,($L$1-1)*10) -> - | L14: =OFFSET(Potencia!L60,0,($L$1-1)*10) -> -
B15: Residuos (1) | C15: =OFFSET(Potencia!C61,0,($L$1-1)*10) -> 2.168 | D15: =OFFSET(Potencia!D61,0,($L$1-1)*10) -> 2.168 | E15: =OFFSET(Potencia!E61,0,($L$1-1)*10) -> - | F15: =OFFSET(Potencia!F61,0,($L$1-1)*10) -> - | G15: =OFFSET(Potencia!G61,0,($L$1-1)*10) -> - | H15: =OFFSET(Potencia!H61,0,($L$1-1)*10) -> - | I15: =OFFSET(Potencia!I61,0,($L$1-1)*10) -> - | J15: =OFFSET(Potencia!J61,0,($L$1-1)*10) -> - | K15: =OFFSET(Potencia!K61,0,($L$1-1)*10) -> - | L15: =OFFSET(Potencia!L61,0,($L$1-1)*10) -> -
B16: Total | C16: =OFFSET(Potencia!C62,0,($L$1-1)*10) -> 78.3659 | D16: =OFFSET(Potencia!D62,0,($L$1-1)*10) -> 78.3659 | E16: =OFFSET(Potencia!E62,0,($L$1-1)*10) -> - | F16: =OFFSET(Potencia!F62,0,($L$1-1)*10) -> - | G16: =OFFSET(Potencia!G62,0,($L$1-1)*10) -> - | H16: =OFFSET(Potencia!H62,0,($L$1-1)*10) -> - | I16: =OFFSET(Potencia!I62,0,($L$1-1)*10) -> - | J16: =OFFSET(Potencia!J62,0,($L$1-1)*10) -> - | K16: =OFFSET(Potencia!K62,0,($L$1-1)*10) -> - | L16: =OFFSET(Potencia!L62,0,($L$1-1)*10) -> -
B17: (1) Potencia incluída en térmica no renovable/cogeneración y resto/cogeneración hasta el 31/12/2014.
B18: Fuente Comisión Nacional de los Mercados y la Competencia (CNMC) en: solar fotovoltaica, térmica no renovable/cogeneración y resto/cogeneración y residuos.
B19: =IF(L1=2,IF(MONTH(FACT)=1,"Datos a 31 de diciembre.",(CONCATENATE("Datos a 31 de diciembre. Para el año ",YEAR(FACT), " datos a ",TEXT(FACT-30,"mmmm")," de ",YEAR(FACT),"."))),"Datos a 31 de diciembre.") -> Datos a 31 de diciembre. Para el año 2017 datos a junio de 2017.

Sheet Potencia (hidden)
B2: Potencia instalada peninsular (MW) | C2: 1990 | D2: 1991 | E2: 1992 | F2: 1993 | G2: 1994 | H2: 1995 | I2: 1996 | J2: 1997 | K2: 1998 | L2: 1999 | M2: 2000 | N2: 2001 | O2: 2002 | P2: 2003 | Q2: 2004 | R2: 2005 | S2: 2006 | T2: 2007 | U2: 2008 | V2: 2009 | W2: 2010 | X2: 2011 | Y2: 2012 | Z2: 2013 | AA2: 2014 | AB2: 2015 | AC2: 2016 | AD2: 2017 | AE2: 2018 | AF2: 2019
B3: Hidráulica convencional y mixta | C3: 13792.61 | D3: 13795.26 | E3: 13848.85 | F3: 13848.85 | G3: 14063.97 | H3: 14088.07 | I3: 14143.08 | J3: 14143.08 | K3: 14143.08 | L3: 14299.34 | M3: 14299.34 | N3: 14301.27 | O3: 14304.68 | P3: 14462.1 | Q3: 14492.17 | R3: 14534.06 | S3: 14566.41 | T3: 14579.41 | U3: 14635.51 | V3: 14635.51 | W3: 14655.31 | X3: 14667.21 | Y3: 14886.65 | Z3: 14889.69 | AA3: 14895.92 | AB3: =(14919.03)+2098.60878 -> 17017.63878 | AC3: =(14919.03+2.78)+2101.48378 -> 17023.29378 | AD3: =(14921.81)+2077.68678 -> 16999.49678 | AE3: - | AF3: -
B4: Bombeo puro | C4: 2428.44 | D4: 2428.44 | E4: 2428.44 | F4: 2428.44 | G4: 2428.44 | H4: 2428.44 | I4: 2428.44 | J4: 2428.44 | K4: 2428.44 | L4: 2428.44 | M4: 2428.44 | N4: 2428.44 | O4: 2428.44 | P4: 2428.44 | Q4: 2428.44 | R4: 2428.44 | S4: 2450.94 | T4: 2450.94 | U4: 2450.94 | V4: 2450.94 | W4: 2450.94 | X4: 2450.94 | Y4: 2450.94 | Z4: 2450.94 | AA4: 2450.94 | AB4: =3300.54+28.35 -> 3328.89 | AC4: 3328.89 | AD4: 3328.89 | AE4: - | AF4: -
B5: Hidráulica | C5: 16221.05 | D5: 16223.7 | E5: 16277.29 | F5: 16277.29 | G5: 16492.41 | H5: 16516.51 | I5: 16571.52 | J5: 16571.52 | K5: 16571.52 | L5: 16727.78 | M5: 16727.78 | N5: 16729.71 | O5: 16733.12 | P5: 16890.54 | Q5: 16920.61 | R5: 16962.5 | S5: 17017.35 | T5: 17030.35 | U5: 17086.45 | V5: 17086.45 | W5: 17106.25 | X5: 17118.15 | Y5: 17337.59 | Z5: 17340.63 | AA5: 17346.86 | AB5: =SUM(AB3:AB4) -> 20346.52878 | AC5: =SUM(AC3:AC4) -> 20352.18378 | AD5: =SUM(AD3:AD4) -> 20328.38678 | AE5: - | AF5: -
B6: Nuclear | C6: 7329.28 | D6: 7343.28 | E6: 7391 | F6: 7391 | G6: 7391 | H6: 7391 | I6: 7391 | J6: 7559.1 | K6: 7606.09 | L6: 7650.09 | M6: 7677.39 | N6: 7694.1 | O6: 7694.1 | P6: 7614.31 | Q6: 7590.15 | R6: 7597.28 | S6: 7455.58 | T6: 7455.58 | U6: 7455.58 | V6: 7455.58 | W6: 7515.37 | X6: 7572.58 | Y6: 7572.58 | Z6: 7572.58 | AA6: 7572.58 | AB6: 7572.58 | AC6: 7572.58 | AD6: 7572.58 | AE6: - | AF6: -
B7: Carbón | C7: 10243 | D7: 10310 | E7: 10310 | F7: 10310 | G7: 10310 | H7: 10310 | I7: 10310 | J7: 10859.9 | K7: 10859.9 | L7: 10859.9 | M7: 11048.67 | N7: 11058.88 | O7: 11051.18 | P7: 11053.22 | Q7: 11036.69 | R7: 10909.96 | S7: 10924.3 | T7: 10857.65 | U7: 10856.4 | V7: 10856.4 | W7: 10873.95 | X7: 11103.39 | Y7: 10595.47 | Z7: 10610.37 | AA7: 10468.02 | AB7: 10468.02 | AC7: =9587.7-51.83 -> 9535.87 | AD7: =9587.7-51.83 -> 9535.87 | AE7: - | AF7: -
B8: Fuel + Gas | C8: 7259.35 | D8: 7247.22 | E8: 7247.22 | F8: 7247.22 | G8: 7247.22 | H8: 7247.22 | I8: 7521.22 | J8: 7521.22 | K8: 7521.22 | L8: 7521.22 | M8: 7521.22 | N8: 7521.22 | O8: 7220.05 | P8: 6655.28 | Q8: 6663.92 | R8: 6369.92 | S8: 6369.92 | T8: 4521.99 | U8: 4179.99 | V8: 2826.07 | W8: 2144.79 | X8: 806.52 | Y8: 505.52 | Z8: 505.52 | AA8: 505.52 | AB8: 0 | AC8: 0 | AD8: 0 | AE8: - | AF8: -
B9: Ciclo combinado | C9: - | D9: - | E9: - | F9: - | G9: - | H9: - | I9: - | J9: - | K9: - | L9: - | M9: - | N9: - | O9: 2619.47 | P9: 4123.13 | Q9: 8062.08 | R9: 11992.37 | S9: 15304.92 | T9: 20672.21 | U9: 21374.12 | V9: 22750.11 | W9: 24844.38 | X9: 24911.73 | Y9: 24947.71 | Z9: 24947.71 | AA9: 24947.71 | AB9: 24947.71 | AC9: 24947.71 | AD9: 24947.71 | AE9: - | AF9: -
B10: Resto hidráulica | C10: 594.219 | D10: 644.233 | E10: 727.772 | F10: 793.655 | G10: 897.169 | H10: 1123.8878 | I10: 1186.0118 | J10: 1233.37395 | K10: 1279.30795 | L10: 1331.88595 | M10: 1390.68045 | N10: 1473.16295 | O10: 1512.33135 | P10: 1567.29655 | Q10: 1629.90555 | R10: 1694.91855 | S10: 1796.36505 | T10: 1869.61065 | U10: 1977.27565 | V10: 2020.30665 | W10: 2030.95898 | X10: 2036.42078 | Y10: 2039.92878 | Z10: 2094.92178 | AA10: 2094.92178 | AB10: - | AC10: - | AD10: - | AE10: - | AF10: -
B11: Eólica | C11: 0.54 | D11: 0.54 | E11: 30.44 | F11: 33.63 | G11: 38.91 | H11: 96.56 | I11: 146.36 | J11: 375.445 | K11: 633.775 | L11: 1021.942 | M11: 1828.922 | N11: 2816.932 | O11: 4390.9845 | P11: 5816.0565 | Q11: 7777.1265 | R11: 9654.0225 | S11: 11285.7097 | T11: 13525.7897 | U11: 15992.8267 | V11: 18714.4417 | W11: 19561.05345 | X11: 21018.08745 | Y11: 22608.70205 | Z11: 22852.97405 | AA11: 22871.44455 | AB11: 22873.24455 | AC11: 22900.24455 | AD11: 22841.44455 | AE11: - | AF11: -
B12: Solar fotovoltaica | C12: 0.1 | D12: 0.1 | E12: 0.1 | F12: 0.1 | G12: 1.1 | H12: 1.1 | I12: 1.1 | J12: 1.137 | K12: 1.159 | L12: 1.22016 | M12: 1.71574 | N12: 2.17681 | O12: 4.8429 | P12: 11.37563 | Q12: 20.92546 | R12: 42.9462 | S12: 118.85114 | T12: 594.27135 | U12: 3205.19975 | V12: 3243.20763 | W12: 3645.21391 | X12: 4032.05946 | Y12: 4293.59123 | Z12: 4396.50017 | AA12: 4402.66461 | AB12: 4418.10708 | AC12: 4429.59423 | AD12: 4430.09383 | AE12: - | AF12: -
B13: Solar térmica | C13: - | D13: - | E13: - | F13: - | G13: - | H13: - | I13: - | J13: - | K13: - | L13: - | M13: - | N13: - | O13: - | P13: - | Q13: - | R13: - | S13: 11.02 | T13: 11.02 | U13: 60.92 | V13: 232.22 | W13: 531.92 | X13: 998.52 | Y13: 1949.92 | Z13: 2299.4275 | AA13: 2299.4275 | AB13: 2299.4275 | AC13: 2299.4275 | AD13: 2299.4275 | AE13: - | AF13: -
B14: Térmica renovable/Otras renovables | C14: - | D14: - | E14: 15.46 | F14: 20.96 | G14: 20.96 | H14: 62.135 | I14: 80.031 | J14: 101.988 | K14: 114.73 | L14: 128.546 | M14: 181.302 | N14: 229.338 | O14: 341.2925 | P14: 433.4435 | Q14: 451.0785 | R14: 478.6745 | S14: 554.4285 | T14: 572.66891 | U14: 612.49491 | V14: 740.10491 | W14: 778.78391 | X14: 882.91991 | Y14: 968.43241 | Z14: 944.44241 | AA14: 981.96541 | AB14: 742.16241 | AC14: 743.11741 | AD14: 742.46041 | AE14: - | AF14: -
B15: Térmica no renovable/Cogeneración y resto/Cogeneración | C15: 159.155 | D15: 225.507 | E15: 334.254 | F15: 534.612 | G15: 682.436 | H15: 1162.9033 | I15: 1834.3803 | J15: 2336.5797 | K15: 2956.4977 | L15: 3610.6447 | M15: 4216.4217 | N15: 4969.2517 | O15: 5377.3337 | P15: 5731.7867 | Q15: 5987.4317 | R15: 6162.5017 | S15: 6370.5047 | T15: 6482.9881 | U15: 6736.6391 | V15: 6968.122 | W15: 7098.0842 | X15: 7179.0717 | Y15: 7117.1502 | Z15: 7057.8807 | AA15: 7047.8022 | AB15: 6607.9082 | AC15: 6600.4532 | AD15: 6503.7462 | AE15: - | AF15: -
B16: Residuos | C16: - | D16: - | E16: - | F16: - | G16: - | H16: - | I16: - | J16: - | K16: - | L16: - | M16: - | N16: - | O16: - | P16: - | Q16: - | R16: - | S16: - | T16: - | U16: - | V16: - | W16: - | X16: - | Y16: - | Z16: - | AA16: - | AB16: 677.406 | AC16: 677.406 | AD16: 669.996 | AE16: - | AF16: -
B17: Total | C17: =SUM(C5:C16) -> 41806.694 | D17: =SUM(D5:D16) -> 41994.58 | E17: 42333.536 | F17: 42608.467 | G17: 43081.205 | H17: 43911.3161 | I17: 45041.6231 | J17: 46560.26365 | K17: 47544.19965 | L17: 48853.22881 | M17: 50594.10189 | N17: 52494.77146 | O17: 56944.70495 | P17: 59896.43888 | Q17: 66139.91771 | R17: 71865.09345 | S17: 77208.94909 | T17: 83594.12871 | U17: 89537.89611 | V17: 92893.01289 | W17: 96130.75445 | X17: 97659.4493 | Y17: 99936.59467 | Z17: 100622.9566 | AA17: 100538.9161 | AB17: =SUM(AB5:AB16) -> 100953.0945 | AC17: =SUM(AC5:AC16) -> 100058.5867 | AD17: =SUM(AD5:AD16) -> 99871.71527 | AE17: - | AF17: -
B19: Potencia instalada Islas Baleares (MW) | C19: 2006 | D19: 2007 | E19: 2008 | F19: 2009 | G19: 2010 | H19: 2011 | I19: 2012 | J19: 2013 | K19: 2014 | L19: 2015 | M19: 2016 | N19: 2017 | O19: 2018 | P19: 2019 | Q19: 2020 | R19: 2021 | S19: 2022 | T19: 2023 | U19: 2024 | V19: 2025
B20: Carbón | C20: 468.4 | D20: 468.4 | E20: 468.4 | F20: 468.4 | G20: 468.4 | H20: 468.4 | I20: 468.4 | J20: 468.4 | K20: 468.4 | L20: 468.4 | M20: 468.4 | N20: 468.4 | O20: - | P20: - | Q20: - | R20: - | S20: - | T20: - | U20: - | V20: -
B21: Motores diesel | C21: 175.6 | D21: 210.4 | E21: 203.3 | F21: 196.2 | G21: 196.2 | H21: 182 | I21: 182 | J21: 182 | K21: 182 | L21: 182 | M21: 182 | N21: 182 | O21: - | P21: - | Q21: - | R21: - | S21: - | T21: - | U21: - | V21: -
B22: Turbina de gas | C22: 541.9 | D22: 387.9 | E22: 460.8 | F22: 531.8 | G22: 533.4 | H22: 533.4 | I22: 557.4 | J22: 605.4 | K22: 605.4 | L22: 605.4 | M22: 605.4 | N22: 605.4 | O22: - | P22: - | Q22: - | R22: - | S22: - | T22: - | U22: - | V22: -
B23: Fuel + Gas | C23: =SUM(C21:C22) -> 717.5 | D23: 598.3 | E23: 664.1 | F23: 728 | G23: 729.6 | H23: 715.4 | I23: 739.4 | J23: 787.4 | K23: 787.4 | L23: =SUM(L21:L22) -> 787.4 | M23: =SUM(M21:M22) -> 787.4 | N23: 787.4 | O23: - | P23: - | Q23: - | R23: - | S23: - | T23: - | U23: - | V23: -
B24: Ciclo combinado | C24: 418.15 | D24: 643.45 | E24: 643.45 | F24: 793.65 | G24: 857.95 | H24: 857.95 | I24: 857.95 | J24: 857.95 | K24: 857.95 | L24: 857.95 | M24: 857.95 | N24: 857.95 | O24: - | P24: - | Q24: - | R24: - | S24: - | T24: - | U24: - | V24: -
B25: Generación auxiliar | C25: - | D25: - | E25: - | F25: - | G25: - | H25: - | I25: - | J25: - | K25: - | L25: - | M25: - | N25: 12.72 | O25: - | P25: - | Q25: - | R25: - | S25: - | T25: - | U25: - | V25: -
B26: Eólica | C26: 3.6763 | D26: 3.6763 | E26: 3.6763 | F26: 3.6763 | G26: 3.6763 | H26: 3.6763 | I26: 3.6763 | J26: 3.6763 | K26: 3.6763 | L26: 3.6763 | M26: 3.6763 | N26: 3.6763 | O26: - | P26: - | Q26: - | R26: - | S26: - | T26: - | U26: - | V26: -
B27: Solar fotovoltaica | C27: 1.11289 | D27: 1.47669 | E27: 51.53754 | F27: 52.58454 | G27: 59.01353 | H27: 63.13208 | I27: 77.50613 | J27: 77.67493 | K27: 77.73383 | L27: 77.76978 | M27: 77.76978 | N27: 77.76578 | O27: - | P27: - | Q27: - | R27: - | S27: - | T27: - | U27: - | V27: -
B28: Térmica renovable/Otras renovables | C28: - | D28: - | E28: - | F28: - | G28: - | H28: - | I28: 2.13 | J28: 2.13 | K28: 2.13 | L28: 2.13 | M28: 2.13 | N28: 2.13 | O28: - | P28: - | Q28: - | R28: - | S28: - | T28: - | U28: - | V28: -
B29: Térmica no renovable/Cogeneración y resto/Cogeneración | C29: 38.31 | D29: 39.168 | E29: 38.188 | F29: 40.402 | G29: 81.171 | H29: 82.171 | I29: 85.625 | J29: 85.625 | K29: 85.625 | L29: 10.825 | M29: 10.825 | N29: 10.825 | O29: - | P29: - | Q29: - | R29: - | S29: - | T29: - | U29: - | V29: -
B30: Residuos | C30: - | D30: - | E30: - | F30: - | G30: - | H30: - | I30: - | J30: - | K30: - | L30: 74.8 | M30: 74.8 | N30: 74.8 | O30: - | P30: - | Q30: - | R30: - | S30: - | T30: - | U30: - | V30: -
B31: Total | C31: =SUM(C20,C23:C30) -> 1647.14919 | D31: =SUM(D20,D23:D30) -> 1754.47099 | E31: 1869.35184 | F31: 2086.71284 | G31: 2199.81083 | H31: 2190.72938 | I31: 2234.68743 | J31: 2282.85623 | K31: 2282.91513 | L31: 2282.95108 | M31: 2282.95108 | N31: =SUM(N20,N23:N30) -> 2295.66708 | O31: - | P31: - | Q31: - | R31: - | S31: - | T31: - | U31: - | V31: -
B33: Potencia instalada Islas Canarias (MW) | C33: 2006 | D33: 2007 | E33: 2008 | F33: 2009 | G33: 2010 | H33: 2011 | I33: 2012 | J33: 2013 | K33: 2014 | L33: 2015 | M33: 2016 | N33: 2017 | O33: 2018 | P33: 2019 | Q33: 2020 | R33: 2021 | S33: 2022 | T33: 2023 | U33: 2024 | V33: 2025
B34: Hidráulica | C34: 0.8 | D34: 0.8 | E34: 0.8 | F34: 0.8 | G34: 0.8 | H34: 0.8 | I34: 0.8 | J34: 0.8 | K34: 0.8 | L34: 1.263 | M34: 1.263 | N34: =0.8+0.463 -> 1.263 | O34: - | P34: - | Q34: - | R34: - | S34: - | T34: - | U34: - | V34: -
B35: Motores diesel | C35: 476.73 | D35: 476.73 | E35: 476.73 | F35: 476.73 | G35: 476.73 | H35: 476.73 | I35: 476.73 | J35: 496.2 | K35: 495.92 | L35: 495.92 | M35: 495.92 | N35: 495.92 | O35: - | P35: - | Q35: - | R35: - | S35: - | T35: - | U35: - | V35: -
B36: Turbina de gas | C36: 520.17 | D36: 520.17 | E36: 520.17 | F36: 520.17 | G36: 520.17 | H36: 557.16 | I36: 557.16 | J36: 557.16 | K36: 557.16 | L36: 557.14 | M36: 557.14 | N36: 557.14 | O36: - | P36: - | Q36: - | R36: - | S36: - | T36: - | U36: - | V36: -
B37: Turbina de vapor | C37: 659.78 | D37: 659.78 | E37: 659.78 | F37: 659.78 | G37: 659.78 | H37: 659.78 | I37: 659.78 | J37: 482.64 | K37: 482.64 | L37: 482.64 | M37: 482.64 | N37: 482.64 | O37: - | P37: - | Q37: - | R37: - | S37: - | T37: - | U37: - | V37: -
B38: Fuel + Gas | C38: =SUM(C35:C37) -> 1656.68 | D38: =SUM(D35:D37) -> 1656.68 | E38: =SUM(E35:E37) -> 1656.68 | F38: 1656.68 | G38: 1656.68 | H38: 1693.67 | I38: 1693.67 | J38: 1536 | K38: 1535.72 | L38: 1535.7 | M38: 1535.7 | N38: =SUM(N35:N37) -> 1535.7 | O38: - | P38: - | Q38: - | R38: - | S38: - | T38: - | U38: - | V38: -
B39: Ciclo combinado | C39: 635.2 | D39: 635.2 | E39: 635.2 | F39: 640.2 | G39: 870.6 | H39: 864.2 | I39: 864.2 | J39: 864.2 | K39: 864.2 | L39: 864.2 | M39: 864.2 | N39: 864.2 | O39: - | P39: - | Q39: - | R39: - | S39: - | T39: - | U39: - | V39: -
B40: Generación auxiliar | C40: 41.27 | D40: 41.35 | E40: 16.18 | F40: 16.1 | G40: - | H40: - | I40: - | J40: - | K40: - | L40: - | M40: - | N40: - | O40: - | P40: - | Q40: - | R40: - | S40: - | T40: - | U40: - | V40: -
B41: Hidroéolica | C41: - | D41: - | E41: - | F41: - | G41: - | H41: - | I41: - | J41: - | K41: 11.39 | L41: 11.39 | M41: 11.39 | N41: 11.39 | O41: - | P41: - | Q41: - | R41: - | S41: - | T41: - | U41: - | V41: -
B42: Resto hidráulica | C42: 0.463 | D42: 0.463 | E42: 0.463 | F42: 0.463 | G42: 0.463 | H42: 0.463 | I42: 0.463 | J42: 0.463 | K42: 0.463 | L42: - | M42: - | N42: - | O42: - | P42: - | Q42: - | R42: - | S42: - | T42: - | U42: - | V42: -
B43: Eólica | C43: 126.645 | D43: 134.955 | E43: 136.985 | F43: 142.585 | G43: 142.585 | H43: 145.135 | I43: 145.475 | J43: 152.59 | K43: 152.59 | L43: 152.59 | M43: 152.59 | N43: 135.4 | O43: - | P43: - | Q43: - | R43: - | S43: - | T43: - | U43: - | V43: -
B44: Solar fotovoltaica | C44: 5.40378 | D44: 22.22271 | E44: 93.75416 | F44: 95.70661 | G44: 125.09781 | H44: 138.04026 | I44: 161.15558 | J44: 164.19108 | K44: 165.24328 | L44: 165.76813 | M44: 166.46813 | N44: 166.46813 | O44: - | P44: - | Q44: - | R44: - | S44: - | T44: - | U44: - | V44: -
B45: Térmica renovable/Otras renovables | C45: 38.2 | D45: 40.296 | E45: 41.568 | F45: 41.568 | G45: 41.568 | H45: 3.368 | I45: 3.368 | J45: 3.368 | K45: 3.368 | L45: 3.368 | M45: 3.368 | N45: 3.368 | O45: - | P45: - | Q45: - | R45: - | S45: - | T45: - | U45: - | V45: -
B46: Térmica no renovable/Cogeneración y resto/Cogeneración | C46: 33.268 | D46: 33.268 | E46: 33.268 | F46: 33.268 | G46: 33.268 | H46: 33.268 | I46: 33.268 | J46: 33.268 | K46: 33.268 | L46: 33.268 | M46: 33.268 | N46: 33.268 | O46: - | P46: - | Q46: - | R46: - | S46: - | T46: - | U46: - | V46: -
B47: Total | C47: =SUM(C34,C38:C46) -> 2537.92978 | D47: 2565.23471 | E47: 2614.89816 | F47: 2627.37061 | G47: 2871.06181 | H47: 2878.94426 | I47: 2902.39958 | J47: 2754.88008 | K47: 2767.04228 | L47: 2767.54713 | M47: 2768.24713 | N47: =SUM(N34,N38:N46) -> 2751.05713 | O47: - | P47: - | Q47: - | R47: - | S47: - | T47: - | U47: - | V47: -
B49: Potencia instalada Ceuta (MW) | C49: 2006 | D49: 2007 | E49: 2008 | F49: 2009 | G49: 2010 | H49: 2011 | I49: 2012 | J49: 2013 | K49: 2014 | L49: 2015 | M49: 2016 | N49: 2017 | O49: 2018 | P49: 2019 | Q49: 2020 | R49: 2021 | S49: 2022 | T49: 2023 | U49: 2024 | V49: 2025
B50: Motores diesel | C50: 53.3 | D50: 64.48 | E50: 65.72 | F50: 65.72 | G50: 77.52 | H50: 77.52 | I50: 77.52 | J50: 77.52 | K50: 77.52 | L50: 77.52 | M50: 77.52 | N50: 77.52 | O50: - | P50: - | Q50: - | R50: - | S50: - | T50: - | U50: - | V50: -
B51: Turbina de gas | C51: - | D51: - | E51: - | F51: - | G51: 13.3 | H51: 13.3 | I51: 13.3 | J51: 13.3 | K51: 13.3 | L51: 13.3 | M51: 13.3 | N51: 13.3 | O51: - | P51: - | Q51: - | R51: - | S51: - | T51: - | U51: - | V51: -
B52: Fuel + Gas | C52: =SUM(C50:C51) -> 53.3 | D52: =SUM(D50:D51) -> 64.48 | E52: 65.72 | F52: 65.72 | G52: 90.82 | H52: 90.82 | I52: 90.82 | J52: 90.82 | K52: 90.82 | L52: 90.82 | M52: 90.82 | N52: =SUM(N50:N51) -> 90.82 | O52: - | P52: - | Q52: - | R52: - | S52: - | T52: - | U52: - | V52: -
B53: Total | C53: =C52 -> 53.3 | D53: =D52 -> 64.48 | E53: 65.72 | F53: 65.72 | G53: 90.82 | H53: 90.82 | I53: 90.82 | J53: 90.82 | K53: 90.82 | L53: 90.82 | M53: 90.82 | N53: =N52 -> 90.82 | O53: =O52 -> - | P53: - | Q53: - | R53: - | S53: - | T53: - | U53: - | V53: -
B55: Potencia instalada Melilla (MW) | C55: 2006 | D55: 2007 | E55: 2008 | F55: 2009 | G55: 2010 | H55: 2011 | I55: 2012 | J55: 2013 | K55: 2014 | L55: 2015 | M55: 2016 | N55: 2017 | O55: 2018 | P55: 2019 | Q55: 2020 | R55: 2021 | S55: 2022 | T55: 2023 | U55: 2024 | V55: 2025
B56: Motores diesel | C56: 49.81 | D56: 64.51 | E56: 64.64 | F56: 64.64 | G56: 64.64 | H56: 64.64 | I56: 64.64 | J56: 64.64 | K56: 64.64 | L56: 64.64 | M56: 64.64 | N56: 64.64 | O56: - | P56: - | Q56: - | R56: - | S56: - | T56: - | U56: - | V56: -
B57: Turbina de gas | C57: 11.5 | D57: 11.5 | E57: 11.5 | F57: 11.5 | G57: 11.5 | H57: 11.5 | I57: 11.5 | J57: 11.5 | K57: 11.5 | L57: 11.5 | M57: 11.5 | N57: 11.5 | O57: - | P57: - | Q57: - | R57: - | S57: - | T57: - | U57: - | V57: -
B58: Fuel + Gas | C58: =SUM(C56:C57) -> 61.31 | D58: =SUM(D56:D57) -> 76.01 | E58: 76.14 | F58: 76.14 | G58: 76.14 | H58: 76.14 | I58: 76.14 | J58: 76.14 | K58: 76.14 | L58: 76.14 | M58: 76.14 | N58: =SUM(N56:N57) -> 76.14 | O58: - | P58: - | Q58: - | R58: - | S58: - | T58: - | U58: - | V58: -
B59: Solar fotovoltaica | C59: 0.0075 | D59: 0.0084 | E59: 0.0579 | F59: 0.0579 | G59: 0.0579 | H59: 0.0579 | I59: 0.0579 | J59: 0.0579 | K59: 0.0579 | L59: 0.0579 | M59: 0.0579 | N59: 0.0579 | O59: - | P59: - | Q59: - | R59: - | S59: - | T59: - | U59: - | V59: -
B60: Térmica no renovable/Cogeneración y resto/Cogeneración | C60: 0 | D60: 2.168 | E60: 2.168 | F60: 2.168 | G60: 2.168 | H60: 2.168 | I60: 2.168 | J60: 2.168 | K60: 2.168 | L60: - | M60: - | N60: - | O60: - | P60: - | Q60: - | R60: - | S60: - | T60: - | U60: - | V60: -
B61: Residuos | C61: - | D61: - | E61: - | F61: - | G61: - | H61: - | I61: - | J61: - | K61: - | L61: 2.168 | M61: 2.168 | N61: 2.168 | O61: - | P61: - | Q61: - | R61: - | S61: - | T61: - | U61: - | V61: -
B62: Total | C62: =SUM(C58:C61) -> 61.3175 | D62: =SUM(D58:D61) -> 78.1864 | E62: 78.3659 | F62: 78.3659 | G62: 78.3659 | H62: 78.3659 | I62: 78.3659 | J62: 78.3659 | K62: 78.3659 | L62: 78.3659 | M62: 78.3659 | N62: =SUM(N58:N61) -> 78.3659 | O62: - | P62: - | Q62: - | R62: - | S62: - | T62: - | U62: - | V62: -
B64: Potencia instalada nacional (MW) | C64: 2006 | D64: 2007 | E64: 2008 | F64: 2009 | G64: 2010 | H64: 2011 | I64: 2012 | J64: 2013 | K64: 2014 | L64: 2015 | M64: 2016 | N64: 2017 | O64: 2018 | P64: 2019 | Q64: 2020 | R64: 2021 | S64: 2022 | T64: 2023 | U64: 2024 | V64: 2025
B65: Hidráulica convencional y mixta | C65: =SUM(S3,C34) -> 14567.21 | D65: =SUM(T3,D34) -> 14580.21 | E65: 14636.31 | F65: 14636.31 | G65: 14656.11 | H65: 14668.01 | I65: 14887.45 | J65: 14890.49 | K65: 14896.72 | L65: 17018.90178 | M65: =SUM(AC3,M34) -> 17024.55678 | N65: 17000.75978 | O65: - | P65: - | Q65: - | R65: - | S65: - | T65: - | U65: - | V65: -
B66: Bombeo puro | C66: =S4 -> 2450.94 | D66: =T4 -> 2450.94 | E66: 2450.94 | F66: 2450.94 | G66: 2450.94 | H66: 2450.94 | I66: 2450.94 | J66: 2450.94 | K66: 2450.94 | L66: 3328.89 | M66: =AC4 -> 3328.89 | N66: 3328.89 | O66: - | P66: - | Q66: - | R66: - | S66: - | T66: - | U66: - | V66: -
B67: Hidráulica | C67: =SUM(C65:C66) -> 17018.15 | D67: =SUM(D65:D66) -> 17031.15 | E67: 17087.25 | F67: 17087.25 | G67: 17107.05 | H67: 17118.95 | I67: 17338.39 | J67: 17341.43 | K67: 17347.66 | L67: 20347.79178 | M67: =SUM(M65:M66) -> 20353.44678 | N67: =SUM(N65:N66) -> 20329.64978 | O67: - | P67: - | Q67: - | R67: - | S67: - | T67: - | U67: - | V67: -
B68: Nuclear | C68: =S6 -> 7455.58 | D68: =T6 -> 7455.58 | E68: 7455.58 | F68: 7455.58 | G68: 7515.37 | H68: 7572.58 | I68: 7572.58 | J68: 7572.58 | K68: 7572.58 | L68: 7572.58 | M68: =AC6 -> 7572.58 | N68: 7572.58 | O68: - | P68: - | Q68: - | R68: - | S68: - | T68: - | U68: - | V68: -
B69: Carbón | C69: =SUM(S7,C20) -> 11392.7 | D69: =SUM(T7,D20) -> 11326.05 | E69: 11324.8 | F69: 11324.8 | G69: 11342.35 | H69: 11571.79 | I69: 11063.87 | J69: 11078.77 | K69: 10936.42 | L69: 10936.42 | M69: =SUM(AC7,M20) -> 10004.27 | N69: 10004.27 | O69: - | P69: - | Q69: - | R69: - | S69: - | T69: - | U69: - | V69: -
B70: Fuel + Gas | C70: =SUM(S8,C23,C25,C40,C38,C52,C58) -> 8899.98 | D70: =SUM(T8,D23,D25,D40,D38,D52,D58) -> 6958.81 | E70: 6658.81 | F70: 5368.71 | G70: 4698.03 | H70: 3382.55 | I70: 3105.55 | J70: 2995.88 | K70: 2995.6 | L70: 2490.06 | M70: =SUM(AC8,M23,M25,M40,M38,M52,M58) -> 2490.06 | N70: =SUM(AD8,N23,N25,N40,N38,N52,N58) -> 2502.78 | O70: - | P70: - | Q70: - | R70: - | S70: - | T70: - | U70: - | V70: -
B71: Ciclo combinado | C71: =SUM(S9,C24,C39) -> 16358.27 | D71: =SUM(T9,D24,D39) -> 21950.86 | E71: 22652.77 | F71: 24183.96 | G71: 26572.93 | H71: 26633.88 | I71: 26669.86 | J71: 26669.86 | K71: 26669.86 | L71: 26669.86 | M71: =SUM(AC9,M24,M39) -> 26669.86 | N71: 26669.86 | O71: - | P71: - | Q71: - | R71: - | S71: - | T71: - | U71: - | V71: -
B72: Hidroeólica | C72: =C41 -> - | D72: =D41 -> - | E72: - | F72: - | G72: - | H72: - | I72: - | J72: - | K72: 11.39 | L72: 11.39 | M72: =M41 -> 11.39 | N72: =N41 -> 11.39 | O72: =O41 -> - | P72: - | Q72: - | R72: - | S72: - | T72: - | U72: - | V72: -
B73: Resto hidráulica | C73: =SUM(S10,C42) -> 1796.82805 | D73: =SUM(T10,D42) -> 1870.07365 | E73: 1977.73865 | F73: 2020.76965 | G73: 2031.42198 | H73: 2036.88378 | I73: 2040.39178 | J73: 2095.38478 | K73: 2095.38478 | L73: - | M73: - | N73: - | O73: - | P73: - | Q73: - | R73: - | S73: - | T73: - | U73: - | V73: -
B74: Eólica | C74: =SUM(S11,C26,C43) -> 11416.031 | D74: =SUM(T11,D26,D43) -> 13664.421 | E74: 16133.488 | F74: 18860.703 | G74: 19707.31475 | H74: 21166.89875 | I74: 22757.85335 | J74: 23009.24035 | K74: 23027.71085 | L74: 23029.51085 | M74: =SUM(AC11,M26,M43) -> 23056.51085 | N74: 22980.52085 | O74: - | P74: - | Q74: - | R74: - | S74: - | T74: - | U74: - | V74: -
B75: Solar fotovoltaica | C75: =SUM(S12,C27,C44,C59) -> 125.37531 | D75: =SUM(T12,D27,D44,D59) -> 617.97915 | E75: 3350.54935 | F75: 3391.55668 | G75: 3829.38315 | H75: 4233.2897 | I75: 4532.31084 | J75: 4638.42408 | K75: 4645.69962 | L75: 4661.70289 | M75: =SUM(AC12,M27,M44,M59) -> 4673.89004 | N75: 4674.38564 | O75: - | P75: - | Q75: - | R75: - | S75: - | T75: - | U75: - | V75: -
B76: Solar térmica | C76: =S13 -> 11.02 | D76: =T13 -> 11.02 | E76: 60.92 | F76: 232.22 | G76: 531.92 | H76: 998.52 | I76: 1949.92 | J76: 2299.4275 | K76: 2299.4275 | L76: 2299.4275 | M76: =AC13 -> 2299.4275 | N76: 2299.4275 | O76: - | P76: - | Q76: - | R76: - | S76: - | T76: - | U76: - | V76: -
B77: Térmica renovable/Otras renovables | C77: =SUM(S14,C28,C45) -> 592.6285 | D77: =SUM(T14,D28,D45) -> 612.96491 | E77: 654.06291 | F77: 781.67291 | G77: 820.35191 | H77: 886.28791 | I77: 973.93041 | J77: 949.94041 | K77: 987.46341 | L77: 747.66041 | M77: =SUM(AC14,M28,M45) -> 748.61541 | N77: 747.95841 | O77: - | P77: - | Q77: - | R77: - | S77: - | T77: - | U77: - | V77: -
B78: Térmica no renovable/Cogeneración y resto/Cogeneración | C78: =SUM(S15,C29,C46,C60) -> 6442.0827 | D78: =SUM(T15,D29,D46,D60) -> 6557.5921 | E78: 6810.2631 | F78: 7043.96 | G78: 7214.6912 | H78: 7296.6787 | I78: 7238.2112 | J78: 7178.9417 | K78: 7168.8632 | L78: 6652.0012 | M78: =SUM(AC15,M29,M46,M60) -> 6644.5462 | N78: 6547.8392 | O78: - | P78: - | Q78: - | R78: - | S78: - | T78: - | U78: - | V78: -
B79: Residuos | C79: - | D79: - | E79: - | F79: - | G79: - | H79: - | I79: - | J79: - | K79: - | L79: =SUM(AB16,L30,L61) -> 754.374 | M79: =SUM(AC16,M30,M61) -> 754.374 | N79: 746.964 | O79: - | P79: - | Q79: - | R79: - | S79: - | T79: - | U79: - | V79: -
B80: Total | C80: =SUM(C67:C79) -> 81508.64556 | D80: =SUM(D67:D79) -> 88056.50081 | E80: 94166.23201 | F80: 97751.18224 | G80: 101370.813 | H80: 102898.3088 | I80: 105242.8676 | J80: 105829.8788 | K80: 105758.0594 | L80: 106172.7786 | M80: =SUM(M67:M79) -> 105278.9708 | N80: =SUM(N67:N79) -> 105087.6254 | O80: - | P80: - | Q80: - | R80: - | S80: - | T80: - | U80: - | V80: -

Sheet Año (hidden)
Y1: 1
B2: 1990-1999 | C2: 2006-2015 | O2: Nacional
B3: 2000-2009 | C3: 2016-2025 | O3: Peninsular
B4: 2010-2019 | O4: Canarias
O5: Baleares
O6: Ceuta
O7: Melilla
